Cogmind - Beta 17.1 @@@ ROGUE MODE // 2026.09.19 @ 15:47:57 Player: SA-TR1 Result: Destroyed by G-67 Veteran with Plasma Rifle Performance ------------- Evolutions (7) 3500 Regions Visited (28) 5600 Robots Destroyed (286) 1430 Value Destroyed (17098) 17098 Prototype IDs (51) 1020 Alien Tech Used (0) 0 Bonus (18438) 18438 TOTAL SCORE: 47086 Bonus ------- High Alert Combat Kills 2670 Follower Combat Kills 6671 Entered Garrisons 1400 Used RIF Installer 4000 Aligned with FarCom 300 Built Enhanced Grunts 300 A7 Reached Mainframe 300 Met R17 at Cetus 500 Met R17 at Research 2000 Scanned by Researcher 500 Friendly Fire -203 Cogmind --------- Core Integrity 0/1300 Matter 208/300 Energy 65/100 System Corruption 14% Temperature Cool (0) Movement Core (50) Location -3/Testing Parts ------- > --- POWER (2) -------- (None) > --- PROPULSION (5) --- (None) > --- UTILITY (11) ----- Advanced Heat Sink Enhanced Optical Array Experimental Terrain Scan Processor Relay Coupler [Sentry] (15) > --- WEAPON (3) ------- (None) > --- INVENTORY (5) ---- SHELL Armor Firepult Peak State ------------ > --- POWER ------------ Hybrid Deuterium Engine Neutrino Core > --- PROPULSION ------- Myomer Leg Myomer Leg Biometal Leg Heavy Shield Leg > --- UTILITY ---------- Advanced Heat Sink High-capacity Storage Unit Enhanced Optical Array Experimental Terrain Scan Processor Centrium Medium Armor Plating Experimental Hardlight Generator Relay Coupler [NC] Relay Coupler [Swarmer] Relay Coupler [Grunt] Relay Coupler [Sentry] Relay Coupler [Hunter] > --- WEAPON ----------- Firepult Compact Mass Driver > --- INVENTORY -------- Quantum Reactor Experimental Myomer Leg Potential Leg Relay Coupler [Swarmer] Relay Coupler [Grunt] Relay Coupler [Grunt] Relay Coupler [Sentry] Relay Coupler [Proto] Relay Coupler [Proto] Relay Coupler [Proto] Relay Coupler [Proto] Advanced Component Analysis Suite Trap Reconfigurator Long-range Proton Cannon Railgun Tiamat Missile Launcher Advanced Remote Datajack Advanced Remote Datajack [Rating: 146] Favorites ----------- Power Quantum Reactor Engine Improved Ion Engine Power Core Neutrino Core Reactor Quantum Reactor Propulsion Armored Leg Treads Light Treads Leg Armored Leg Wheel Armored Wheel Utility Relay Coupler [Sentry] Device Advanced Heat Sink Storage High-capacity Storage Unit Processor Enhanced Optical Array Hackware Relay Coupler [Sentry] Protection Centrium Medium Armor Plating Weapon Improved Heavy Machine Gun Energy Gun Heavy Particle Gun Energy Cannon Long-range Proton Cannon Ballistic Gun Improved Heavy Machine Gun Ballistic Cannon Compact Mass Driver Launcher Grenade Launcher Special Weapon Remote Datajack Impact Weapon Maul Slashing Weapon Great Axe Special Melee Weapon Improved Datajack Build | -11 -10 -10 -9 -9 -9 -8 -8 -8 -8 -8 -7 -7 -7 -7 -7 -7 -6 -6 -6 -6 -6 -6 -5 -5 -4 -4 -3 -3 ------- Run | Yrd Mat Min Mat Min Exi Min Mat Gar Mat Gar Fac Was Fac Gar Fac Gar Fac Ext Cet Arc Hub Gar Fac Gar Fac Gar Res Tes Slots Evolved 14 | . . . 2 . . . 2 . . . 2 . . . . . 2 . . . . . 2 . 2 . 2 . Power 1 | . . . . . . . . . . . . . . . . . . . . . . . 1 . . . . . Propulsion 3 | . . . 1 . . . . . . . 1 . . . . . 1 . . . . . . . . . . . Utility 9 | . . . . . . . 2 . . . 1 . . . . . 1 . . . . . 1 . 2 . 2 . Weapon 1 | . . . 1 . . . . . . . . . . . . . . . . . . . . . . . . . Parts Attached 290 | 7 8 1 20 2 . 4 18 17 4 10 10 1 4 12 22 16 7 12 4 2 . 8 7 9 19 18 15 33 Power 27 | 1 . . 4 . . . 4 2 . 1 . 1 . . 2 1 . 2 1 1 . . 2 . 1 1 1 2 Engine 15 | 1 . . 4 . . . 4 1 . 1 . . . . 2 . . 1 . . . . . . . . 1 . Core 6 | . . . . . . . . 1 . . . . . . . 1 . 1 . 1 . . 1 . 1 . . . Reactor 6 | . . . . . . . . . . . . 1 . . . . . . 1 . . . 1 . . 1 . 2 Propulsion 68 | 2 2 1 6 1 . 4 4 1 . 1 6 . 1 2 2 3 2 3 . . . 1 1 . 2 4 4 15 Treads 10 | . 2 1 5 . . . 1 . . . . . . . . . . . . . . . . . . . . 1 Leg 46 | . . . . . . . . . . 1 6 . 1 2 2 3 2 3 . . . 1 1 . 2 4 4 14 Wheel 12 | 2 . . 1 1 . 4 3 1 . . . . . . . . . . . . . . . . . . . . Hover . | . . . . . . . . . . . . . . . . . . . . . . . . . . . . . Flight . | . . . . . . . . . . . . . . . . . . . . . . . . . . . . . Utility 130 | 2 2 . 1 . . . 6 9 4 6 4 . 2 10 9 8 3 5 1 . . 4 2 9 12 9 10 12 Device 32 | 1 . . . . . . 3 4 . 1 1 . . 2 2 1 . 1 . . . . . 2 4 1 3 6 Storage 9 | 1 2 . . . . . . . . . 1 . 1 . . . . . . . . . 1 . . . 2 1 Processor 11 | . . . 1 . . . 1 . . . . . . . . . 1 1 . . . . . . 3 1 2 1 Hackware 64 | . . . . . . . . 5 4 4 2 . 1 7 4 7 2 2 . . . 4 1 7 4 6 2 2 Protection 14 | . . . . . . . 2 . . 1 . . . 1 3 . . 1 1 . . . . . 1 1 1 2 Artifact . | . . . . . . . . . . . . . . . . . . . . . . . . . . . . . Weapon 65 | 2 4 . 9 1 . . 4 5 . 2 . . 1 . 9 4 2 2 2 1 . 3 2 . 4 4 . 4 Energy Gun 10 | 1 1 . 2 . . . 2 . . 1 . . . . . 2 . . . 1 . . . . . . . . Energy Cannon 5 | . . . . . . . 1 . . . . . . . 2 . . . . . . . 1 . . 1 . . Ballistic Gun 29 | 1 2 . 6 . . . . 1 . . . . 1 . 3 1 2 1 2 . . 2 . . 1 3 . 3 Ballistic Cannon 3 | . . . . . . . . 1 . . . . . . . . . . . . . . . . 1 . . 1 Launcher 7 | . 1 . 1 1 . . . . . 1 . . . . 1 . . 1 . . . . . . 1 . . . Special Weapon 8 | . . . . . . . . 2 . . . . . . 2 1 . . . . . 1 1 . 1 . . . Impact Weapon 1 | . . . . . . . 1 . . . . . . . . . . . . . . . . . . . . . Slashing Weapon 1 | . . . . . . . . . . . . . . . 1 . . . . . . . . . . . . . Piercing Weapon . | . . . . . . . . . . . . . . . . . . . . . . . . . . . . . Special Melee Weapon 1 | . . . . . . . . 1 . . . . . . . . . . . . . . . . . . . . Unidentified Prototypes 14 | . . . . . . . 2 . . . . . . . . . . . 2 1 . 1 . . 1 1 1 5 Corrupted Parts 1 | . . . . . . . . . . . . . . . . . . . . . . . . . . . 1 . System Corruption 4 | . . . . . . . . . . . . . . . . . . . . . . . . . . . 4 . Parts Lost 79 | . . 3 8 . . 2 1 1 . 1 1 . . 1 3 11 . 1 . . . . . . 3 1 . 42 Power 11 | . . 1 1 . . . . 1 . . . . . . 1 1 . . . . . . . . 1 . . 5 Propulsion 28 | . . 2 3 . . 1 . . . 1 . . . . . 3 . . . . . . . . . 1 . 17 Utility 22 | . . . 1 . . . . . . . 1 . . 1 2 4 . 1 . . . . . . 1 . . 11 Weapon 18 | . . . 3 . . 1 1 . . . . . . . . 3 . . . . . . . . 1 . . 9 Highest Loss Streak 15 | . . 2 3 . . 2 1 1 . 1 1 . . 1 2 2 . 1 . . . . . . 1 1 . 15 To Critical Strikes 2 | . . . . . . . . . . . . . . . . . . . . . . . . . . . . 2 Average Backups 18 | 3 8 8 11 15 17 22 23 23 23 21 14 14 14 18 18 17 18 18 19 19 19 18 18 18 18 17 17 17 Power . | . . . . 1 1 1 1 . . . . . . . . 1 1 1 1 1 1 1 . 1 1 . 1 . Propulsion 2 | 1 2 2 . 1 2 4 3 4 4 3 1 2 2 5 4 2 1 1 2 2 2 1 1 2 2 2 1 2 Utility 8 | . 1 2 2 4 4 7 9 12 14 12 7 8 7 8 7 8 10 8 7 7 7 9 10 9 7 9 10 9 Weapon 4 | 1 2 3 5 7 7 7 7 5 3 3 2 2 2 2 3 3 4 5 6 7 7 4 4 4 4 3 3 3 Tool/Special . | . . . . . . . . . . . . . . . . . . . . . . . . . . . . . Unused Backups 67 | . 4 . 1 . . . 8 11 1 2 1 . . 2 . 7 . 1 5 . . 3 1 3 . 4 1 12 Power 4 | . 2 . . . . . . . . . . . . . . 1 . . 1 . . . . . . . . . Propulsion 11 | . 1 . . . . . 3 3 1 . . . . . . 1 . . . . . 1 . . . 1 . . Utility 37 | . . . . . . . 2 7 . 2 1 . . 1 . 5 . . 2 . . 2 . 2 . 3 1 9 Weapon 10 | . 1 . 1 . . . 1 1 . . . . . 1 . . . 1 2 . . . 1 1 . . . . Tool/Special 5 | . . . . . . . 2 . . . . . . . . . . . . . . . . . . . . 3 Average Slot Usage (%) 96 | . 99 87 94 100 100 98 99 99 100 97 98 100 100 97 98 96 99 99 100 99 100 99 99 99 98 91 93 85 Engine 3 | . 14 2 7 11 11 11 9 5 . 1 7 2 . . . 3 . . . . . . . . . . 1 3 Core 2 | . . . . . . . . 3 9 7 . . . . . 3 6 5 . . . . 2 5 6 2 4 2 Reactor 2 | . . . . . . . . . . . . 4 7 7 6 . . . 5 5 6 6 8 5 3 7 2 . Treads 4 | . 26 26 22 22 22 4 7 6 . . . . . . . . . . . . . . . . . . . . Leg 18 | . . . . . . . . . . 1 29 30 30 30 30 29 33 33 33 33 33 33 29 29 25 19 19 18 Wheel 5 | . 1 1 10 11 11 27 19 20 27 24 . . . . . . . . . . . . . . . . . . Device 5 | . 14 14 2 . . . 9 8 1 . 6 7 6 6 4 5 2 . . . . . . 2 9 3 5 9 Storage 7 | . 14 14 11 11 11 11 9 9 9 9 7 7 7 7 7 7 6 6 6 6 6 6 5 5 5 5 4 4 Processor 5 | . . . 8 11 11 11 11 5 . . . . . . . . . 2 6 6 6 6 5 5 8 12 9 10 Hackware 14 | . . . . . . . . 3 19 20 22 23 23 14 17 17 24 23 20 20 20 20 22 20 16 17 24 16 Protection 4 | . . . . . . . 6 8 6 5 . . . 6 6 5 4 6 6 6 6 5 5 4 4 5 4 2 Energy Gun 4 | . 14 14 12 11 11 3 11 14 . 2 7 7 2 . . 3 . . . 5 6 . . . . . . . Ballistic Gun 10 | . 13 14 19 2 . 27 14 2 9 8 7 7 12 11 10 5 9 15 19 13 13 15 12 11 11 11 10 4 Special Weapon 3 | . . . . . . . . 4 16 6 4 7 7 9 7 6 6 3 . . . 3 2 5 2 1 3 1 Peak Build Rating 146 | 7 8 8 16 16 19 21 37 46 45 50 60 58 62 63 76 73 77 87 99 99 99 102 112 117 129 138 140 146 Average Rating 71 | 5 7 7 12 14 16 20 29 39 41 42 56 57 59 59 60 60 73 80 94 98 99 96 110 113 122 131 135 121 On Entrance 61 | . 7 8 7 16 14 19 21 37 44 40 44 56 58 62 61 61 65 77 84 95 99 99 102 109 117 125 130 137 Avg Prop Armor Cover (%) 13 | . . 15 18 16 17 11 10 9 . 5 . . . . 14 . . . . . . . . . . . . 7 Naked Turns . | . . . . . . . . . . . . . . . . . . . . . . . . . . . . . Heaviest Build 121 | 14 31 30 36 36 96 97 102 105 100 108 51 48 69 81 104 98 78 87 92 80 80 83 105 101 117 121 115 108 Greatest Support 148 | 26 40 40 60 16 16 36 30 36 36 36 81 76 76 80 90 90 106 106 98 98 98 106 106 104 115 148 141 138 Greatest Overweight (x) 9 | . . 2 3 3 5 9 5 4 2 4 . . . 1 2 1 . . . . . . . . 1 1 1 2 Average Overweight (x) . | . . . 2 2 3 3 3 3 2 2 . . . . . . . . . . . . . . . . . . Largest Inventory Capacity 25 | 8 25 15 15 15 25 25 25 25 25 25 25 15 20 20 20 20 20 20 20 20 20 20 20 20 20 20 20 20 Average Capacity 20 | 7 9 15 15 15 21 25 25 25 25 25 15 15 16 20 20 20 20 20 20 20 20 20 20 20 20 20 20 19 Most Carried 25 | 8 9 9 15 15 21 25 25 25 25 25 25 15 20 20 20 20 20 20 20 20 20 20 20 20 20 20 20 20 Average Carried 19 | 3 8 8 11 15 18 23 24 24 24 23 15 14 15 19 19 18 19 19 19 20 20 19 19 19 19 19 18 18 Final Capacity 25 | 8 15 15 15 15 25 25 25 25 25 25 15 15 20 20 20 20 20 20 20 20 20 20 20 20 20 20 20 5 Final Carried 25 | 8 9 8 15 15 21 25 24 25 23 25 15 15 20 20 17 19 20 20 20 20 20 20 20 20 20 19 19 5 Class Distribution -------------------- 26% | Botlord-Tank 18% | Bothacker-Tank 9% | Bothacker-Skirmisher 7% | Bothacker-Mutant 6% | Scavenger-Gunner 5% | Mutant 5% | Commander-Tank 3% | Scavenger-Skirmisher 3% | Botlord-Mutant Dominant Class ---------------- Mutant | -10/Materials Mutant | -10/Mines Scavenger-Gunner | -9/Materials Scavenger-Gunner | -9/Mines Scavenger-Gunner | -9/Exiles Scavenger-Skirmisher | -8/Mines Skirmisher | -8/Materials Bothacker-Skirmisher | -8/Garrison Bothacker-Skirmisher | -8/Materials Bothacker-Skirmisher | -8/Garrison Bothacker-Tank | -7/Factory Bothacker-Tank | -7/Waste Bothacker-Tank | -7/Factory Bothacker-Tank | -7/Garrison Bothacker-Tank | -7/Factory Bothacker-Tank | -7/Garrison Botlord-Mutant | -6/Factory Bothacker-Tank | -6/Extension Commander-Tank | -6/Cetus Commander-Tank | -6/Archives Commander-Tank | -6/Hub_04(d) Botlord-Tank | -6/Garrison Botlord-Tank | -5/Factory Botlord-Tank | -5/Garrison Botlord-Tank | -4/Factory Botlord-Tank | -4/Garrison Botlord-Tank | -3/Research Botlord-Tank | -3/Testing Resources | -11 -10 -10 -9 -9 -9 -8 -8 -8 -8 -8 -7 -7 -7 -7 -7 -7 -6 -6 -6 -6 -6 -6 -5 -5 -4 -4 -3 -3 ----------- Run | Yrd Mat Min Mat Min Exi Min Mat Gar Mat Gar Fac Was Fac Gar Fac Gar Fac Ext Cet Arc Hub Gar Fac Gar Fac Gar Res Tes Matter Collected 12122 | 237 315 35 483 68 . 476 512 456 131 455 140 131 103 531 668 714 137 848 92 56 . 322 202 525 875 1598 290 1722 Remotely . | . . . . . . . . . . . . . . . . . . . . . . . . . . . . . Salvage Created 10834 | 26 472 90 917 135 . 527 950 437 . 108 48 . 41 323 812 1232 . 350 37 . . . 43 231 894 835 60 2266 Parts 514 | 7 30 6 60 8 . 21 51 34 . 8 1 . 2 17 29 37 . 19 . . . . 2 9 36 41 3 93 Haulers Intercepted 5 | . . . 1 . . . 4 . . . . . . . . . . . . . . . . . . . . . Recyclers Shooed 9 | . 2 1 . . . 1 . . . . 1 . . . . . . 1 . . . . 1 . 2 . . . Parts Field Recycled . | . . . . . . . . . . . . . . . . . . . . . . . . . . . . . Retrieved Matter . | . . . . . . . . . . . . . . . . . . . . . . . . . . . . . Parts Self-Destructed . | . . . . . . . . . . . . . . . . . . . . . . . . . . . . . Prevented . | . . . . . . . . . . . . . . . . . . . . . . . . . . . . . Parts Restored . | . . . . . . . . . . . . . . . . . . . . . . . . . . . . . Kills | -11 -10 -10 -9 -9 -9 -8 -8 -8 -8 -8 -7 -7 -7 -7 -7 -7 -6 -6 -6 -6 -6 -6 -5 -5 -4 -4 -3 -3 ------- Run | Yrd Mat Min Mat Min Exi Min Mat Gar Mat Gar Fac Was Fac Gar Fac Gar Fac Ext Cet Arc Hub Gar Fac Gar Fac Gar Res Tes Combat Hostiles Destroyed 219 | . 15 6 21 10 . 9 15 14 . 4 . . 1 10 11 25 . 8 . . . . 2 3 12 14 1 38 Melee 5 | . . . . . . . . . . . . . . . 2 2 . 1 . . . . . . . . . . Guns 108 | . 8 6 18 2 . 4 15 9 . . . . 1 7 2 6 . 4 . . . . 2 3 5 10 1 5 Cannons 19 | . . . . . . . . 2 . . . . . . . 3 . . . . . . . . 3 2 . 9 AOE 63 | . 7 . 3 8 . 5 . 2 . 4 . . . 3 5 7 . 3 . . . . . . 4 . . 12 Classes Destroyed 18 | 1 5 . 2 . . 1 1 2 . . . . . . . 2 . . . . . . . . . . . 4 Worker 17 | . 3 . 1 . . . 3 . . . . . . . 4 . . . . . . . . . . . . 6 Builder 4 | . . . . . . . . . . . . . . . . . . . . . . . . . . . . 4 Tunneler 5 | 2 . . . . . 2 . . . . . . . . . . . . . . . . . . 1 . . . Hauler 5 | . . . 1 . . . 4 . . . . . . . . . . . . . . . . . . . . . Recycler 13 | . 2 . 1 . . 3 1 . . . 1 . . . 2 . . . . . . . . . 3 . . . Carrier 1 | . . . . . . . . . . . . . . . . 1 . . . . . . . . . . . . Mechanic 1 | . . . . . . . . . . . . . . . . . . . . . . . . . . . . 1 Operator 2 | . . . . . . . 1 . . . . . . . . . . . . . . . . . . . . 1 Watcher 8 | . 1 . 3 . . . . . . 1 . . . . 1 . . . 1 . . . . . 1 . . . Swarmer 71 | . 9 6 7 8 . . 6 6 . 4 . . . 6 1 . . 3 . . . . 2 1 4 4 . 4 Grunt 76 | . 6 . 8 . . 8 5 3 . . . . . 5 7 19 . . . . . . . 1 . 2 . 12 Brawler 1 | . . . . . . . . . . . . . . . . 1 . . . . . . . . . . . . Duelist 1 | . . . . . . 1 . . . . . . . . . . . . . . . . . . . . . . Researcher 7 | . . . . . . . . . . . . . . . . . . . . . . . . . . . . 7 Sentry 22 | . . . 6 2 . . 4 1 . . . . . . 3 . . 4 . . . . . 1 1 . . . Specialist 3 | . . . . . . . . . . . . . . . . . . . . . . . . . . . . 3 Hunter 22 | . . . . . . . . 1 . . . . 1 . . . . 2 . . . . . . 3 4 . 11 Programmer 27 | . . . . . . . . 3 . . . . . . 1 5 . . . . . . . . 4 5 1 8 Best Kill Streak 13 | 1 6 3 5 8 . 4 4 3 . 4 1 . 1 4 3 7 . 3 1 . . . 2 1 4 2 1 13 Combat Bots Only 8 | . 4 3 5 8 . 3 4 3 . 4 . . 1 4 2 7 . 3 . . . . 2 1 4 2 1 6 Max Kills in Single Turn 5 | 1 4 1 2 3 . 1 2 2 . 2 1 . 1 3 3 5 . 3 1 . . . 2 1 4 2 1 3 Gunslinging 1 | . . . 1 . . . . 1 . . . . . . . 1 . . . . . . 1 . . . . . Exploded 4 | . 2 . 1 3 . 1 . 1 . 2 . . . 3 2 2 . 3 . . . . . . 4 . . 1 Melee 1 | . . . . . . . . . . . . . . . 1 1 . 1 . . . . . . . . . . Uniques/NPCs Destroyed . | . . . . . . . . . . . . . . . . . . . . . . . . . . . . . Combat | -11 -10 -10 -9 -9 -9 -8 -8 -8 -8 -8 -7 -7 -7 -7 -7 -7 -6 -6 -6 -6 -6 -6 -5 -5 -4 -4 -3 -3 -------- Run | Yrd Mat Min Mat Min Exi Min Mat Gar Mat Gar Fac Was Fac Gar Fac Gar Fac Ext Cet Arc Hub Gar Fac Gar Fac Gar Res Tes Hostile Shots Fired 3216 | . 75 31 125 9 . 28 67 72 9 27 6 . 22 96 202 154 19 97 10 . . 20 9 20 128 194 18 1778 Missed 1307 | . 27 4 24 . . 10 18 26 2 10 3 . 16 39 71 44 10 35 4 . . 11 4 3 53 58 12 823 Deflected 17 | . . . . . . . . . . . . . . . . . . . . . . . . . . 15 . 2 Hits 1909 | . 48 27 101 9 . 18 49 46 7 17 3 . 6 57 131 110 9 62 6 . . 9 5 17 75 136 6 955 Melee 3 | . . . . . . . . . . . . . . 1 1 . . . . . . . . . 1 . . . Projectile 1906 | . 48 27 101 9 . 18 49 46 7 17 3 . 6 56 130 110 9 62 6 . . 9 5 17 74 136 6 955 AOE 11 | . . 6 . . . . . . . . . . . . . . . . . . . 2 . . 2 1 . . Critical Strikes 52 | . . . 2 . . 2 2 2 . . . . . 2 3 4 . . 1 . . . . . 3 6 . 25 Part Disruptions 8 | . . . . . . . . 1 . 1 . . . . . 1 . . . . . . . . . 2 . 3 Damage Taken 20647 | . 467 395 1166 101 . 333 633 547 124 226 106 . 46 714 1313 1502 151 522 88 . . 224 77 344 1239 1798 152 8379 Core 2607 | . 90 72 213 9 . 55 92 37 48 41 . . . 180 69 148 . 35 . . . 24 . 37 44 98 35 1280 Absorbed by Shields 5706 | . . . . . . . . 102 . . . . . 116 . 72 . 66 62 . . 19 . 57 336 776 111 3989 Ignored by Resistances 290 | . . . . . . . . . . . . . . . 111 75 13 82 9 . . . . . . . . . Regen/Repaired (Parts) 898 | . . . . . . . . . . . . . . . 325 . 123 72 . . . . . . 121 . . 257 Core Remaining (%) 68 | 100 . 35 . . . 30 . . . 60 . . . . . 43 . . . . . 93 . 96 . 87 . . Volleys Fired 936 | 11 39 16 69 8 . 24 55 43 12 40 9 . 10 52 52 63 16 49 3 2 3 18 11 40 63 89 13 126 Largest 3 | 2 2 2 3 3 . 3 3 3 1 2 2 . 2 2 3 3 1 3 3 2 1 3 3 2 3 3 3 3 Hottest 304 | 70 70 85 135 102 . 102 139 184 5 95 95 . 58 58 250 278 5 60 81 30 240 110 85 70 151 96 85 304 Shots Fired 1629 | 22 65 32 186 20 . 60 161 80 12 43 12 . 16 69 61 85 16 78 5 4 3 35 13 59 108 178 17 189 Gun 1118 | 22 57 32 180 12 . 48 161 57 . 5 6 . 12 37 34 40 . 45 3 4 3 28 3 39 68 136 8 78 Cannon 153 | . . . . . . . . 3 . 6 . . . . 10 25 . . 2 . . . . . 12 17 . 78 Launcher 58 | . 8 . 6 8 . 12 . 2 . 4 . . . 1 1 2 . 1 . . . . . . 1 . . 12 Special 300 | . . . . . . . . 18 12 28 6 . 4 31 16 18 16 32 . . . 7 10 20 27 25 9 21 Kinetic 916 | 11 30 16 116 8 . 41 95 17 . 9 3 . 12 37 34 19 . 45 3 4 . 27 3 39 72 138 8 129 Thermal 314 | 11 27 16 64 4 . 7 66 43 . 13 3 . . . 9 32 . . . . 3 1 . . . . . 15 Explosive 58 | . 8 . 6 8 . 12 . 2 . 4 . . . 1 1 2 . 1 . . . . . . 1 . . 12 Electromagnetic 54 | . . . . . . . . . . . . . . . 3 14 . . 2 . . . . . 8 15 . 12 Robot Hit Streak 19 | 5 4 5 13 11 . 6 19 15 7 9 4 . 8 12 11 10 15 17 12 4 . 8 7 8 8 11 5 8 Robot Miss Streak 8 | 2 5 5 5 1 . 2 4 2 4 3 2 . 2 3 3 8 1 3 4 . . 3 1 2 4 6 1 6 Penetration Max 1 | . . . . . . . . . . . . . . 1 1 . . . . . . . . 1 1 1 . . Secondary Targets 12 | . . 3 5 . . . . 1 . . . . . 1 . 1 . . . . . . 1 . . . . . Max Gunslinging Chain 2 | . . 1 2 . . . . 1 . . . . . 1 . 1 . . . . . . 1 . . . . . Shots Hit Robots 1056 | 13 32 18 111 13 . 33 97 68 8 27 7 . 12 46 55 66 15 65 1 4 . 14 11 31 64 104 12 129 Core Hits 499 | 5 28 7 45 10 . 32 40 19 . 7 1 . 2 13 30 58 . 15 . 3 . 3 3 9 27 23 1 118 Critical Kills 6 | . . . . . . . . 1 . . . . . . . . . . . . . . . 3 1 1 . . Critical Parts Destroyed 13 | . . . . . . . 1 2 . 1 . . . 1 1 . . . . . . . . 1 5 1 . . Critical Strikes 43 | 1 2 2 . . . . 5 5 . 1 . . . 1 2 4 . . . . . . . 6 6 2 . 6 Burn 14 | 1 2 2 . . . . 4 2 . . . . . . . 3 . . . . . . . . . . . . Destroy 20 | . . . . . . . 1 2 . 1 . . . 1 1 . . . . . . . . 6 6 2 . . Blast 6 | . . . . . . . . . . . . . . . . . . . . . . . . . . . . 6 Smash 1 | . . . . . . . . 1 . . . . . . . . . . . . . . . . . . . . Sever 2 | . . . . . . . . . . . . . . . 1 1 . . . . . . . . . . . . Melee Attacks 78 | . . . . . . . 6 28 . 1 . . . . 11 7 . 2 13 10 . . . . . . . . Impact 21 | . . . . . . . 6 14 . 1 . . . . . . . . . . . . . . . . . . Slashing 38 | . . . . . . . . . . . . . . . 6 7 . 2 13 10 . . . . . . . . Piercing . | . . . . . . . . . . . . . . . . . . . . . . . . . . . . . Sneak Attacks 24 | . . . . . . . . 13 . 1 . . . . 5 3 . 2 . . . . . . . . . . Combat Hostiles 1 | . . . . . . . . . . . . . . . . 1 . . . . . . . . . . . . Follow-up Attacks . | . . . . . . . . . . . . . . . . . . . . . . . . . . . . . Damage Inflicted 26994 | 144 1054 198 1641 535 . 1266 1507 1060 . 570 61 . 149 775 1447 2823 21 1301 128 93 . 243 102 510 2024 2362 158 6822 Guns 12991 | 144 318 197 1418 149 . 418 1507 692 . 35 61 . 127 570 618 645 . 775 42 93 . 243 82 510 1142 1940 156 1109 Cannons 3489 | . . . . . . . . 72 . 51 . . . . 168 383 . . 86 . . . . . 251 422 . 2056 Explosions 8915 | . 733 . 223 386 . 848 . 135 . 294 . . . 205 313 1457 . 257 . . . . . . 560 . . 3504 Melee 941 | . . . . . . . . 158 . 82 . . . . 192 338 . 171 . . . . . . . . . . Ramming 539 | . 3 1 . . . . . 3 . . . . 22 . 145 . 21 98 . . . . 20 . 71 . 2 153 Kinetic 11642 | 46 125 81 831 91 . 330 627 154 . 51 46 . 127 570 618 324 . 775 42 93 . 243 82 510 1184 1959 156 2577 Thermal 6906 | 98 193 116 587 58 . 88 880 610 . 143 15 . . . 402 1846 . . . . . . . . . . . 1870 Explosive 5778 | . 733 . 223 386 . 848 . 135 . 294 . . . 205 . 172 . 257 . . . . . . 560 . . 1965 Electromagnetic 1188 | . . . . . . . . . . . . . . . 90 143 . . 86 . . . . . 209 403 . 257 Impact 240 | . . . . . . . . 158 . 82 . . . . . . . . . . . . . . . . . . Slashing 701 | . . . . . . . . . . . . . . . 192 338 . 171 . . . . . . . . . . Piercing . | . . . . . . . . . . . . . . . . . . . . . . . . . . . . . Highest Corruption 14 | . 6 6 . . . . . 2 2 3 . . . . 5 10 . . . . . . . . 5 12 5 14 Average Corruption 4 | . 5 6 . . . . . 1 2 2 . . . . 3 7 . . . . . . . . 3 6 1 5 Corruption Purged 6 | . . . . . . . . . . . . . . . . . . . . . . . . . . . 6 . Corruption Blocked . | . . . . . . . . . . . . . . . . . . . . . . . . . . . . . Effects 222 | . 6 10 . . . . . 10 4 4 . . . . 20 50 . . . . . . . . 12 50 10 46 Message Errors 60 | . 1 4 . . . . . 2 1 1 . . . . 5 17 . . . . . . . . 2 13 1 13 Matter Fused 46 | . 2 1 . . . . . 2 . 1 . . . . 3 13 . . . . . . . . 2 13 3 6 Heat Flow Errors 17 | . 1 2 . . . . . . . . . . . . 3 4 . . . . . . . . . 3 1 3 Energy Discharges 29 | . 1 1 . . . . . 5 2 . . . . . 2 2 . . . . . . . . 2 4 4 6 Parts Rejected 6 | . . . . . . . . . . . . . . . . . . . . . . . . . 1 2 . 3 Parts Fused 2 | . . . . . . . . . . . . . . . 1 . . . . . . . . . . . . 1 Data Loss (minor) 30 | . . 1 . . . . . 1 . . . . . . 2 7 . . . . . . . . 4 10 . 5 Data Loss (major) 11 | . . . . . . . . . 1 1 . . . . 2 3 . . . . . . . . . 2 1 1 Misfires 10 | . . . . . . . . . . 1 . . . . 1 3 . . . . . . . . 1 1 . 3 Alerts 3 | . . 1 . . . . . . . . . . . . . . . . . . . . . . . 1 . 1 Misdirections 2 | . . . . . . . . . . . . . . . . . . . . . . . . . . . . 2 Weapon Failures 6 | . 1 . . . . . . . . . . . . . 1 1 . . . . . . . . . 1 . 2 Overload Shots 3 | . . . . . . . . . . . . . . . . . . . . . 3 . . . . . . . Effects 1 | . . . . . . . . . . . . . . . . . . . . . 1 . . . . . . . Energy Bleed 1 | . . . . . . . . . . . . . . . . . . . . . 1 . . . . . . . Overflow Damage 542 | . 23 . 14 72 . . . 27 . . . . . 37 22 160 . 1 23 . . . . . 18 . . 145 Projectiles 114 | . . . . . . . . . . . . . . . . 21 . . 23 . . . . . 18 . . 52 Explosions 267 | . 23 . 14 72 . . . 16 . . . . . 37 . 34 . . . . . . . . . . . 71 Melee 161 | . . . . . . . . 11 . . . . . . 22 105 . 1 . . . . . . . . . 22 Knockbacks 24 | . 1 . . . . . . . . . . . . . . . 1 1 . . . . . . . . . 21 Impact 7 | . 1 . . . . . . . . . . . . . . . 1 1 . . . . . . . . . 4 Kinetic 16 | . . . . . . . . . . . . . . . . . . . . . . . . . . . . 16 Secondary 1 | . . . . . . . . . . . . . . . . . . . . . . . . . . . . 1 Self-Inflicted Damage 475 | . 51 . . . . 15 . . . . . . . 31 17 113 . . . . . . . . . . . 248 Shots 28 | . 2 . . . . 1 . . . . . . . 1 4 7 . . . . . . . . . . . 13 Rammed 3 | . 1 1 . . . . . 1 . . . . . . . . . . . . . . . . . . . . Targets Rammed 37 | . 2 1 . . . . . 1 . . . . 1 . 7 . 1 3 . . . . 1 . 3 . 1 16 Kicked 33 | . . . . . . . . . . . . . 1 . 7 . 1 3 . . . . 1 . 3 . 1 16 Crushed 1 | . 1 . . . . . . . . . . . . . . . . . . . . . . . . . . . Highest Temperature 414 | 100 196 254 281 162 . 198 366 250 . 153 100 . 8 36 346 414 . 76 60 . 379 60 24 27 144 252 198 405 Average Temperature 82 | 48 49 99 94 84 . 48 101 67 . 58 55 . 6 15 117 136 . 32 25 . 215 19 15 9 73 71 52 118 Received Heat Transfer 3508 | . 63 . 396 18 . 198 297 186 27 9 . . 9 134 372 400 60 154 . . . 32 9 58 35 87 4 960 Effects 19 | . . 1 4 . . . 7 3 . . . . . . . 2 . . . . 1 . . . . . . 1 Shutdowns 2 | . . . . . . . 1 . . . . . . . . . . . . . 1 . . . . . . . Energy Bleed 4 | . . 1 . . . . 1 . . . . . . . . 1 . . . . . . . . . . . 1 Interference 11 | . . . 4 . . . 3 3 . . . . . . . 1 . . . . . . . . . . . . Matter Decay 1 | . . . . . . . 1 . . . . . . . . . . . . . . . . . . . . . Short Circuit 1 | . . . . . . . 1 . . . . . . . . . . . . . . . . . . . . . Siege Activations . | . . . . . . . . . . . . . . . . . . . . . . . . . . . . . Martial Activations . | . . . . . . . . . . . . . . . . . . . . . . . . . . . . . Shielding Activations 6 | . . . . . . . . . . . . . . . . . . . . . . . . . . 5 . 1 Total Turns 99 | . . . . . . . . . . . . . . . . . . . . . . . . . . 84 . 15 Longest Duration 27 | . . . . . . . . . . . . . . . . . . . . . . . . . . 27 . 15 Robots Disrupted . | . . . . . . . . . . . . . . . . . . . . . . . . . . . . . Combat Hostiles . | . . . . . . . . . . . . . . . . . . . . . . . . . . . . . Robots Corrupted 6 | . . . . . . . . 1 . . . . . . . . . . 1 . . . . . . 2 . 2 Combat Hostiles 4 | . . . . . . . . 1 . . . . . . . . . . . . . . . . . 2 . 1 Parts Fried 7 | . . . . . . . . 2 . . . . . . 1 . . . 1 . . . . . . 3 . . Impact Corruptions 6 | . . . . . . . . 2 . . . . . . 1 . . 1 . . . . . . . . . 2 Robots Melted 23 | . . . . . . . . . . . . . . . 2 8 . . . . . . . . . . . 13 Combat Hostiles 20 | . . . . . . . . . . . . . . . 2 7 . . . . . . . . . . . 11 Parts Melted 102 | 3 . 1 2 1 . . 2 1 . . . . . 1 4 33 . 1 . . . . . 1 . . . 52 Heat Transferred 28687 | 370 703 444 1480 148 . 222 2035 1176 . 444 37 . . . 2037 8551 . . . . . . . . . . . 11040 Parts Sabotaged 4 | . . . . . . . . . . . . . . . . . . . . . . . . . 4 . . . Parts Stolen . | . . . . . . . . . . . . . . . . . . . . . . . . . . . . . Parts Stripped . | . . . . . . . . . . . . . . . . . . . . . . . . . . . . . Power Chain Reactions 1 | . . . . . . . . . . . . . . . . 1 . . . . . . . . . . . . Alert | -11 -10 -10 -9 -9 -9 -8 -8 -8 -8 -8 -7 -7 -7 -7 -7 -7 -6 -6 -6 -6 -6 -6 -5 -5 -4 -4 -3 -3 ------- Run | Yrd Mat Min Mat Min Exi Min Mat Gar Mat Gar Fac Was Fac Gar Fac Gar Fac Ext Cet Arc Hub Gar Fac Gar Fac Gar Res Tes Maximum Alert Level 5 | . 1 . 1 1 . . . 5 3 3 2 . . 2 1 4 2 2 2 1 . 4 2 3 4 5 3 3 Low Security (%) 28 | 100 98 100 57 55 . 100 100 13 . . . 100 100 22 . . . 67 . 67 100 16 . . . . . 3 Level 1 18 | . 1 . 42 44 . . . 11 . 14 70 . . 18 100 11 28 11 73 32 . 1 16 . . . . 36 Level 2 17 | . . . . . . . . 7 72 21 29 . . 59 . 9 71 21 26 . . 14 83 30 15 . 16 42 Level 3 23 | . . . . . . . . 36 27 64 . . . . . 63 . . . . . 42 . 69 47 13 83 17 Level 4 9 | . . . . . . . . 29 . . . . . . . 16 . . . . . 25 . . 36 43 . . Level 5 2 | . . . . . . . . 1 . . . . . . . . . . . . . . . . . 42 . . High Security . | . . . . . . . . . . . . . . . . . . . . . . . . . . . . . Max Security . | . . . . . . . . . . . . . . . . . . . . . . . . . . . . . Peak Influence 1953 | 5 200 110 292 329 . 148 115 1669 859 884 464 91 30 715 387 1222 641 632 445 284 66 1202 630 1011 1430 1953 1098 924 Initial 1098 | . 3 70 17 95 . . . 66 813 346 464 91 . . 375 259 641 177 332 124 17 28 630 415 530 970 1098 365 Average 554 | . 90 77 149 194 . 52 32 837 574 680 358 28 3 404 287 892 438 217 368 157 29 782 527 738 1052 1470 844 494 Influence Increases 17302 | 10 519 155 728 264 . 323 485 1713 200 668 6 . 90 925 586 1213 193 1003 324 200 81 1324 601 796 1843 1173 110 1769 Destroy 0b10 Robot/C 8080 | . 300 120 420 200 . 180 300 740 60 360 . . 20 400 360 580 100 400 140 80 20 460 240 260 700 600 60 980 Destroy 0b10 Robot/NC 420 | 10 30 . 30 . . 25 45 . 5 10 5 . . 10 40 . 15 25 10 . . 5 20 10 50 . . 75 Destroy Leader 1072 | . 62 20 128 20 . 30 88 20 32 10 . . 10 30 104 60 32 40 . . 10 50 30 20 136 20 20 100 Allied During Kill 2620 | . . . . . . . . 120 46 107 . . . 54 23 14 46 422 150 80 30 515 193 246 399 154 9 12 Trap Triggered on 0b10 20 | . . . . . . . . . . 10 . . . . 10 . . . . . . . . . . . . . Successful Hack 291 | . 30 . 5 . . . 12 . 27 14 . . 45 37 14 14 . 47 8 . . . 10 . . 14 2 12 Select Force Hacks 90 | . 30 . 30 . . . . . 30 . . . . . . . . . . . . . . . . . . . Disable Machine 720 | . . . 15 . . . 30 . . 15 . . . . 15 . . . . 30 15 . 30 60 255 15 15 225 Anti-Garrison Action 2400 | . . . . . . . . 800 . 100 . . . 300 . 300 . . . . . 250 . 200 150 300 . . Destroy Structure 989 | . 52 . 40 44 . 73 10 18 . 12 1 . . 19 20 50 . 24 16 10 6 44 78 . 138 40 4 290 Partial Spotted 75 | . . . . . . . . . . . . . . . . . . 45 . . . . . . 15 . . 15 Lose Combat Pursuer 525 | . 15 15 60 . . 15 . 15 . 30 . . 15 75 . 195 . . . . . . . . . 30 . 60 Influence Decreases 16414 | 5 341 293 527 421 89 323 382 147 1336 317 628 262 90 210 930 362 1053 771 608 460 90 163 1209 379 1467 607 1413 1531 Entered New Map 6555 | . 2 113 28 151 89 . . 37 856 187 420 171 . . 340 112 581 185 262 186 33 13 572 179 481 417 855 285 Time Decay 5928 | 5 339 150 419 270 . 303 336 . 160 . 198 91 90 . 490 . 262 476 206 254 57 . 262 . 526 . 478 556 Lost Part 790 | . . 30 80 . . 20 10 10 . 10 10 . . 10 30 110 . 10 . . . . . . 30 10 . 420 Lost Ally 2090 | . . . . . . . 10 100 20 120 . . . 200 70 140 60 100 140 20 . 150 100 200 280 180 80 120 Purge Threat 1051 | . . . . . . . 26 . 300 . . . . . . . 150 . . . . . 275 . 150 . . 150 Squads Dispatched 68 | . 3 . 6 . . 1 5 . 2 . 2 . 2 . 7 . 3 3 . . . . 3 . 10 . 5 16 Investigation 9 | . 1 . 3 . . . . . 1 . . . 2 . . . . 1 . . . . . . . . 1 . Extermination 10 | . . . . . . . . . . . 1 . . . 2 . 1 . . . . . 1 . 2 . . 3 Reinforcement 36 | . 2 . 3 . . 1 2 . . . . . . . 2 . 2 2 . . . . 2 . 3 . 4 13 Assault 5 | . . . . . . . . . . . . . . . . . . . . . . . . . 5 . . . Garrison 8 | . . . . . . . 3 . 1 . 1 . . . 3 . . . . . . . . . . . . . Intercept . | . . . . . . . . . . . . . . . . . . . . . . . . . . . . . Searches Triggered . | . . . . . . . . . . . . . . . . . . . . . . . . . . . . . Construction Impeded 8 | . . . 1 . . 1 . . . . . . . . . . . 1 . . . . 1 . 1 . . 3 Haulers Reinforced 4 | . . . . . . . . . . . . . . . . . 1 . . . . . . . 1 . 2 . Active Scanning Responses . | . . . . . . . . . . . . . . . . . . . . . . . . . . . . . Cargo Convoy Interrupts . | . . . . . . . . . . . . . . . . . . . . . . . . . . . . . Stealth | -11 -10 -10 -9 -9 -9 -8 -8 -8 -8 -8 -7 -7 -7 -7 -7 -7 -6 -6 -6 -6 -6 -6 -5 -5 -4 -4 -3 -3 --------- Run | Yrd Mat Min Mat Min Exi Min Mat Gar Mat Gar Fac Was Fac Gar Fac Gar Fac Ext Cet Arc Hub Gar Fac Gar Fac Gar Res Tes Distress Signals 27 | . 1 . 2 . . . 5 . 1 . 1 . . 2 1 . . . 2 . . 1 . . 1 . 6 4 Communications Jammed . | . . . . . . . . . . . . . . . . . . . . . . . . . . . . . Distress Signals . | . . . . . . . . . . . . . . . . . . . . . . . . . . . . . Times Spotted 625 | . 24 8 30 9 . 9 29 42 6 23 4 . 4 39 29 51 10 22 11 3 1 27 17 30 40 53 10 94 Peak Tracking Total 16 | . 6 3 6 4 . 3 5 5 3 6 3 . 2 6 5 10 4 3 5 1 1 8 6 5 7 8 2 16 Tactical Retreats 28 | . 1 1 3 . . 1 . 1 . 1 . . 1 5 . 9 . . . . . . . . . 2 . 3 Traps | -11 -10 -10 -9 -9 -9 -8 -8 -8 -8 -8 -7 -7 -7 -7 -7 -7 -6 -6 -6 -6 -6 -6 -5 -5 -4 -4 -3 -3 ------- Run | Yrd Mat Min Mat Min Exi Min Mat Gar Mat Gar Fac Was Fac Gar Fac Gar Fac Ext Cet Arc Hub Gar Fac Gar Fac Gar Res Tes Traps Triggered 36 | . 3 . 2 . . . 1 10 . 2 2 . 1 1 2 2 . . . . . . 1 4 1 2 1 1 Indirectly . | . . . . . . . . . . . . . . . . . . . . . . . . . . . . . Trap Hack Attempts 12 | . . . . . . . . . . . . . . . 12 . . . . . . . . . . . . . Triggered . | . . . . . . . . . . . . . . . . . . . . . . . . . . . . . Disarmed . | . . . . . . . . . . . . . . . . . . . . . . . . . . . . . Reprogrammed 1 | . . . . . . . . . . . . . . . 1 . . . . . . . . . . . . . Reused 2 | . . . . . . . . . . 1 . . . . 1 . . . . . . . . . . . . . Traps Reconfigurated 23 | . . . . . . . . . . 4 . . . . . . . 4 . . . 7 5 1 . 2 . . Traps Extracted . | . . . . . . . . . . . . . . . . . . . . . . . . . . . . . Installed 2 | . . . . . . . . . . . 2 . . . . . . . . . . . . . . . . . Triggered 2 | . . . . . . . . . . 1 . . . . 1 . . . . . . . . . . . . . Most Traps Carried 4 | . . . . . . . . . . 3 2 . . . . . . . . . . . . 4 . . . . Machines | -11 -10 -10 -9 -9 -9 -8 -8 -8 -8 -8 -7 -7 -7 -7 -7 -7 -6 -6 -6 -6 -6 -6 -5 -5 -4 -4 -3 -3 ---------- Run | Yrd Mat Min Mat Min Exi Min Mat Gar Mat Gar Fac Was Fac Gar Fac Gar Fac Ext Cet Arc Hub Gar Fac Gar Fac Gar Res Tes Machines Disabled 82 | . . . 1 . . . 2 8 . 3 . . . 4 1 4 . . . 2 1 5 2 8 18 6 1 16 Max in Single Turn 2 | . . . 1 . . . 1 1 . 1 . . . 1 1 1 . . . . 1 1 . 2 1 1 1 2 Garrison Access 4 | . . . . . . . . . . . 1 . . . . . . . . . . . 1 . 1 . 1 . Garrison Relay 30 | . . . . . . . . 6 . 3 . . . 4 . 4 . . . . . 5 . 4 . 4 . . Phase Generator 1 | . . . . . . . . 1 . . . . . . . . . . . . . . . . . . . . Machines Repaired . | . . . . . . . . . . . . . . . . . . . . . . . . . . . . . Machines Dismantled 15 | . . . . . . . . 6 . 3 . . . 4 . 2 . . . . . . . . . . . . Machines Sabotaged . | . . . . . . . . . . . . . . . . . . . . . . . . . . . . . Overloaded Fab Kills . | . . . . . . . . . . . . . . . . . . . . . . . . . . . . . Hacking | -11 -10 -10 -9 -9 -9 -8 -8 -8 -8 -8 -7 -7 -7 -7 -7 -7 -6 -6 -6 -6 -6 -6 -5 -5 -4 -4 -3 -3 --------- Run | Yrd Mat Min Mat Min Exi Min Mat Gar Mat Gar Fac Was Fac Gar Fac Gar Fac Ext Cet Arc Hub Gar Fac Gar Fac Gar Res Tes Machines Accessed 92 | . 5 . 6 . 2 . 4 4 6 2 4 . 6 3 7 2 2 10 1 . 2 1 7 2 8 1 3 4 Terminals 60 | . 4 . 4 . . . 3 4 5 2 1 . 2 3 3 2 1 10 1 . 1 1 3 2 3 1 1 3 Fabricators 3 | . . . . . . . . . . . . . 1 . 1 . . . . . . . . . 1 . . . Repair Stations 3 | . . . . . . . . . . . 1 . . . 2 . . . . . . . . . . . . . Recycling Units 3 | . 1 . 1 . . . . . . . . . . . . . 1 . . . . . . . . . . . Scanalyzers 9 | . . . 1 . . . . . . . 1 . 2 . . . . . . . . . 2 . 2 . 1 . Garrison Access 12 | . . . . . . . 1 . 1 . 1 . 1 . 1 . . . . . 1 . 2 . 2 . 1 1 Total Hacks 181 | . 11 . 14 . 3 . 8 7 20 2 6 . 15 6 12 2 4 21 1 . 4 2 12 3 11 2 9 6 Successful 94 | . 8 . 5 . 3 . 7 . 10 1 2 . 12 3 5 1 1 11 1 . 2 . 5 1 6 1 6 3 Failed 85 | . 3 . 9 . . . 1 7 10 1 4 . 3 3 7 1 3 10 . . 2 2 6 2 5 1 2 3 Catastrophic 23 | . 1 . 4 . . . . 1 2 . 1 . 2 . 3 1 1 1 . . . . 1 . 3 . . 2 Database Lockouts 2 | . . . . . . . . . . . . . . . . . . . . . . . 1 . . . 1 . Manual 59 | . 7 . 7 . 1 . 4 . 13 . . . 4 2 2 . . 6 1 . 3 . 3 . 3 . . 3 Terminals 119 | . 10 . 11 . . . 7 7 17 2 1 . 5 6 3 2 2 21 1 . 3 2 5 3 3 2 1 5 Fabricators 5 | . . . . . . . . . . . . . 2 . 1 . . . . . . . . . 2 . . . Repair Stations 7 | . . . . . . . . . . . 1 . . . 6 . . . . . . . . . . . . . Recycling Units 4 | . 1 . 1 . . . . . . . . . . . . . 2 . . . . . . . . . . . Scanalyzers 25 | . . . 2 . . . . . . . 2 . 7 . . . . . . . . . 5 . 4 . 5 . Garrison Access 18 | . . . . . . . 1 . 3 . 2 . 1 . 2 . . . . . 1 . 2 . 2 . 3 1 Terminal Hacks 40 | . 5 . 2 . 3 . 3 . 5 1 . . . 3 . 1 1 10 1 . 1 . 1 1 . 1 . 1 Record 2 | . . . . . 2 . . . . . . . . . . . . . . . . . . . . . . . Part Schematic 2 | . 1 . . . . . . . 1 . . . . . . . . . . . . . . . . . . . Robot Analysis 4 | . 2 . 1 . . . . . . . . . . . . . . 1 . . . . . . . . . . Prototype ID Bank 2 | . . . 1 . . . . . . . . . . . . . . . . . . . 1 . . . . . Open Door 10 | . . . . . . . . . . . . . . 1 . . . 6 1 . . . . 1 . . . 1 Branch Access Points 2 | . 1 . . . . . . . . . . . . . . . . 1 . . . . . . . . . . Emergency Access Points 2 | . . . . . . . . . . . . . . 1 . 1 . . . . . . . . . . . . Terminal Index 1 | . . . . . . . 1 . . . . . . . . . . . . . . . . . . . . . Unreport Threat 4 | . . . . . . . 1 . 2 . . . . . . . 1 . . . . . . . . . . . Locate Traps 2 | . . . . . . . . . 1 . . . . . . . . 1 . . . . . . . . . . Hauler Manifests 3 | . . . . . . . 1 . 1 . . . . . . . . 1 . . . . . . . . . . Registered Components 1 | . 1 . . . . . . . . . . . . . . . . . . . . . . . . . . . Zone Layout 1 | . . . . . . . . . . . . . . . . . . . . . 1 . . . . . . . Garrison Registry 2 | . . . . . . . . . . 1 . . . . . . . . . . . . . . . 1 . . Security Stations 1 | . . . . . . . . . . . . . . 1 . . . . . . . . . . . . . . Proto ID Catalog 1 | . . . . . 1 . . . . . . . . . . . . . . . . . . . . . . . Fabricator Hacks 3 | . . . . . . . . . . . . . 2 . . . . . . . . . . . 1 . . . Network Status 1 | . . . . . . . . . . . . . . . . . . . . . . . . . 1 . . . Load Schematic 1 | . . . . . . . . . . . . . 1 . . . . . . . . . . . . . . . Build 1 | . . . . . . . . . . . . . 1 . . . . . . . . . . . . . . . Repair Station Hacks 3 | . . . . . . . . . . . . . . . 3 . . . . . . . . . . . . . Scan Component 2 | . . . . . . . . . . . . . . . 2 . . . . . . . . . . . . . Repair 1 | . . . . . . . . . . . . . . . 1 . . . . . . . . . . . . . Recycling Unit Hacks . | . . . . . . . . . . . . . . . . . . . . . . . . . . . . . Scanalyzer 15 | . . . 2 . . . . . . . . . 6 . . . . . . . . . 2 . 2 . 3 . Retrieve Study 15 | . . . 2 . . . . . . . . . 6 . . . . . . . . . 2 . 2 . 3 . Garrison Access Hacks 17 | . . . . . . . 1 . 2 . 2 . 1 . 2 . . . . . 1 . 2 . 2 . 3 1 Unlock Access 9 | . . . . . . . 1 . 1 . . . 1 . 1 . . . . . 1 . 1 . 2 . 1 . Seal Access 3 | . . . . . . . . . . . 1 . . . . . . . . . . . 1 . . . 1 . Coupler Status 5 | . . . . . . . . . 1 . 1 . . . 1 . . . . . . . . . . . 1 1 Unauthorized Hacks 16 | . 3 . 1 . . . 3 . 3 . . . 3 . . . . 1 . . . . . . 1 . . 1 Terminals 12 | . 2 . . . . . 3 . 2 . . . 3 . . . . 1 . . . . . . . . . 1 Track 3 | . 1 . . . . . . . . . . . . . . . . 1 . . . . . . . . . 1 Assimilate 1 | . . . . . . . 1 . . . . . . . . . . . . . . . . . . . . . Botnet 4 | . 1 . . . . . . . 1 . . . 2 . . . . . . . . . . . . . . . Operators 2 | . . . . . . . . . 1 . . . 1 . . . . . . . . . . . . . . . Skim 2 | . . . . . . . 2 . . . . . . . . . . . . . . . . . . . . . Fabricators 1 | . . . . . . . . . . . . . . . . . . . . . . . . . 1 . . . Liberate 1 | . . . . . . . . . . . . . . . . . . . . . . . . . 1 . . . Repair Stations . | . . . . . . . . . . . . . . . . . . . . . . . . . . . . . Recycling Units 2 | . 1 . 1 . . . . . . . . . . . . . . . . . . . . . . . . . Tunnel 2 | . 1 . 1 . . . . . . . . . . . . . . . . . . . . . . . . . Scanalyzers . | . . . . . . . . . . . . . . . . . . . . . . . . . . . . . Garrison Access 1 | . . . . . . . . . 1 . . . . . . . . . . . . . . . . . . . Eject 1 | . . . . . . . . . 1 . . . . . . . . . . . . . . . . . . . Data Cores Recovered 1 | . . . . . . . . . . . . . . . . . 1 . . . . . . . . . . . Used . | . . . . . . . . . . . . . . . . . . . . . . . . . . . . . Hacking Detections 72 | . 3 . 5 . . . 3 4 5 2 4 . 5 1 6 2 2 6 1 . 1 1 4 2 8 1 2 4 Full Trace Events 4 | . . . 1 . . . . 1 . . . . 1 . . . . 1 . . . . . . . . . . Feedback Events . | . . . . . . . . . . . . . . . . . . . . . . . . . . . . . Feedback Blocked . | . . . . . . . . . . . . . . . . . . . . . . . . . . . . . Robot Schematics Acquired 2 | . . . . . . . . . . . . . . . . . . . . . . . . . . . . 2 Robots Built . | . . . . . . . . . . . . . . . . . . . . . . . . . . . . . Authchips . | . . . . . . . . . . . . . . . . . . . . . . . . . . . . . Time . | . . . . . . . . . . . . . . . . . . . . . . . . . . . . . Total Robot Build Rating . | . . . . . . . . . . . . . . . . . . . . . . . . . . . . . Part Schematics Acquired 4 | . 1 . . . . . . . . . . . . . . . . . . . . . . . . . . 3 Parts Built 1 | . . . . . . . . . . . . . 1 . . . . . . . . . . . . . . . Authchips . | . . . . . . . . . . . . . . . . . . . . . . . . . . . . . Time 51 | . . . . . . . . . . . . . 51 . . . . . . . . . . . . . . . Total Part Build Rating 1 | . . . . . . . . . . . . . 1 . . . . . . . . . . . . . . . Part Studies Acquired 15 | . . . 2 . . . . . . . . . 6 . . . . . . . . . 2 . 2 . 3 . Parts Repaired 1 | . . . . . . . . . . . . . . . 1 . . . . . . . . . . . . . Time 22 | . . . . . . . . . . . . . . . 22 . . . . . . . . . . . . . Parts Recycled . | . . . . . . . . . . . . . . . . . . . . . . . . . . . . . Recycled Matter . | . . . . . . . . . . . . . . . . . . . . . . . . . . . . . Retrieved Matter . | . . . . . . . . . . . . . . . . . . . . . . . . . . . . . Retrieved Components . | . . . . . . . . . . . . . . . . . . . . . . . . . . . . . Parts Scanalyzed . | . . . . . . . . . . . . . . . . . . . . . . . . . . . . . Part Schematics Acquired . | . . . . . . . . . . . . . . . . . . . . . . . . . . . . . Parts Damaged . | . . . . . . . . . . . . . . . . . . . . . . . . . . . . . Bothacking | -11 -10 -10 -9 -9 -9 -8 -8 -8 -8 -8 -7 -7 -7 -7 -7 -7 -6 -6 -6 -6 -6 -6 -5 -5 -4 -4 -3 -3 ------------ Run | Yrd Mat Min Mat Min Exi Min Mat Gar Mat Gar Fac Was Fac Gar Fac Gar Fac Ext Cet Arc Hub Gar Fac Gar Fac Gar Res Tes Used RIF Installer 8 | . . . . . . . . 1 . 1 . . . 1 . 1 . . . . . 1 . 1 . 2 . . Command Fork 1 | . . . . . . . . . . . . . . . . . . . . . . 1 . . . . . . Zone Cloak 2 | . . . . . . . . . . . . . . . . 1 . . . . . . . 1 . . . . Watcher Feeds 1 | . . . . . . . . . . . . . . . . . . . . . . . . . . 1 . . Structural Interface 1 | . . . . . . . . . . 1 . . . . . . . . . . . . . . . . . . Program Shield 1 | . . . . . . . . . . . . . . . . . . . . . . . . . . 1 . . Autooverride 1 | . . . . . . . . . . . . . . 1 . . . . . . . . . . . . . . Robots Hacked 171 | . . . . . . . . 9 6 8 3 . 2 19 12 13 12 10 . . . 6 8 16 14 15 7 11 Non-combat 25 | . . . . . . . . . 2 . 1 . . . 5 . 4 1 . . . . 4 . 4 . 3 1 Combat 146 | . . . . . . . . 9 4 8 2 . 2 19 7 13 8 9 . . . 6 4 16 10 15 4 10 Autooverrided 22 | . . . . . . . . . . . . . . 3 . 3 2 3 . . . . 1 2 3 2 2 1 Robot Hacks Applied 169 | . . . . . . . . 9 6 9 3 . 2 17 14 12 12 9 . . . 6 9 14 16 14 5 12 parse_system 4 | . . . . . . . . . . . . . . . 1 . 1 1 . . . 1 . . . . . . no_distress 1 | . . . . . . . . . . . . . . . . . 1 . . . . . . . . . . . ignore_repairs 3 | . . . . . . . . . . . . . . . 3 . . . . . . . . . . . . . find_dsf 1 | . . . . . . . . . . . . . . . . . . . . . . . . . 1 . . . drop_inventory 9 | . . . . . . . . . 1 . . . . . 1 . 1 . . . . . 2 . 1 . 3 . find_recycling 1 | . . . . . . . . . 1 . . . . . . . . . . . . . . . . . . . ignore_parts 1 | . . . . . . . . . . . . . . . . . 1 . . . . . . . . . . . check_alert 1 | . . . . . . . . . . . . . . . . . . . . . . . . . . . . 1 purge_threat 4 | . . . . . . . . . . . . . . . . . . . . . . . 2 . 1 . . 1 block_reporting 6 | . . . . . . . . . . . . . . . . . 1 1 . . . . 2 . 1 . . 1 summon_haulers 1 | . . . . . . . . . . . . . . . . . . . . . . . . . 1 . . . map_route 3 | . . . . . . . . . . . 1 . . . 1 . . . . . . . . . 1 . . . reboot_propulsion 1 | . . . . . . . . . . . . . . . . . . . . . . . . . 1 . . . disrupt_area 1 | . . . . . . . . . . . . . . . . . . . . . . . . 1 . . . . spike_heat 1 | . . . . . . . . . . . . . . 1 . . . . . . . . . . . . . . overload_power 9 | . . . . . . . . 1 . . . . . 5 . . 1 . . . . . . . 1 . . 1 amplify_resonance 22 | . . . . . . . . 1 . 4 . . . . 2 1 . 1 . . . 3 1 4 . 5 . . wipe_record 2 | . . . . . . . . . . . . . . . . 1 . . . . . . . . 1 . . . disable_weapons 2 | . . . . . . . . . . . . . . 1 1 . . . . . . . . . . . . . reboot_system 6 | . . . . . . . . . 1 1 . . . . . . 2 . . . . . . . 1 1 . . overwrite_iff 14 | . . . . . . . . 2 . 1 . . . 2 . 1 . 1 . . . 1 . 1 1 1 . 3 streamctrl_low 1 | . . . . . . . . . . . . . . . . . . . . . . . . . 1 . . . formatsys_low 2 | . . . . . . . . . . . . . . . 1 . 1 . . . . . . . . . . . formatsys_high 73 | . . . . . . . . 5 3 3 2 . 2 8 4 9 3 5 . . . 1 2 8 4 7 2 5 Relay Couplers Released 123 | . . . . . . . . 27 4 13 . . . 13 . 14 . . . . . 22 . 14 2 14 . . Ejected 4 | . . . . . . . . . 4 . . . . . . . . . . . . . . . . . . . Machine Destruction 116 | . . . . . . . . 27 . 10 . . . 13 . 14 . . . . . 22 . 14 2 14 . . Programmers 3 | . . . . . . . . . . 3 . . . . . . . . . . . . . . . . . . Attached 64 | . . . . . . . . 5 4 4 2 . 1 7 4 7 2 2 . . . 4 1 7 4 6 2 2 Fabnet Peak Effective % . | . . . . . . . . . . . . . . . . . . . . . . . . . . . . . Robots Rewired 18 | . . . . . . . . 8 . . . . . . . . . 10 . . . . . . . . . . Allies Hacked 2 | . . . . . . . . 1 . . . . . . 1 . . . . . . . . . . . . . Hacks Repelled . | . . . . . . . . . . . . . . . . . . . . . . . . . . . . . Allies | -11 -10 -10 -9 -9 -9 -8 -8 -8 -8 -8 -7 -7 -7 -7 -7 -7 -6 -6 -6 -6 -6 -6 -5 -5 -4 -4 -3 -3 -------- Run | Yrd Mat Min Mat Min Exi Min Mat Gar Mat Gar Fac Was Fac Gar Fac Gar Fac Ext Cet Arc Hub Gar Fac Gar Fac Gar Res Tes Total Allies 157 | . . . . . . . 1 15 3 4 2 . 2 13 5 11 6 28 5 . . 4 3 20 9 13 4 9 Largest Group 25 | . . . . . . . 1 7 9 6 4 1 2 6 2 3 6 24 25 22 20 19 11 12 13 7 1 2 Highest-Rated Group 1081 | . . . . . . . 10 101 135 94 94 32 32 191 48 96 166 794 1081 1081 893 940 629 513 618 325 64 94 Highest-Rated Ally 159 | . . . . . . . 10 39 21 21 32 32 32 32 32 43 32 159 159 159 96 96 96 95 142 95 64 56 Total Orders 44 | . . . . . . . . 2 2 4 1 . . . 1 . 1 11 1 1 . 3 . 2 3 11 . 1 STAY 21 | . . . . . . . . 1 1 2 1 . . . . . . 3 . . . 2 . 1 1 8 . 1 FOLLOW 14 | . . . . . . . . 1 1 2 . . . . . . . 4 . . . 1 . 1 1 3 . . AID 9 | . . . . . . . . . . . . . . . 1 . 1 4 1 1 . . . . 1 . . . Ally Attacks 1084 | . . . . . . . . 90 21 54 7 . 7 86 46 28 30 139 57 21 3 104 32 84 139 101 11 24 Total Damage 29907 | . . . . . . . . 1526 310 907 138 . 92 1475 883 706 729 2523 1180 644 130 4432 1380 1473 5923 3715 375 1366 Kills 210 | . . . . . . . . 23 4 14 . . . 12 8 3 8 17 8 4 1 26 17 10 29 16 2 8 Allies Corrupted 5 | . . . . . . . . . . . . . . . . . . . . . . . . . 1 1 1 2 Allies Melted 3 | . . . . . . . . . . . . . . . 1 . 1 . . . . . . . . . . 1 Intel | -11 -10 -10 -9 -9 -9 -8 -8 -8 -8 -8 -7 -7 -7 -7 -7 -7 -6 -6 -6 -6 -6 -6 -5 -5 -4 -4 -3 -3 ------- Run | Yrd Mat Min Mat Min Exi Min Mat Gar Mat Gar Fac Was Fac Gar Fac Gar Fac Ext Cet Arc Hub Gar Fac Gar Fac Gar Res Tes Active Infowar (turns) 12622 | 5 819 304 253 . . . 367 . . . 19 . . . 193 376 213 449 435 547 128 1011 577 966 1471 1628 1239 1622 Optics 10073 | . . . . . . . . . . . . . . . . . . 449 435 547 128 1011 577 966 1471 1628 1239 1622 Sensors 421 | . . . . . . . . . . . . . . . . . . . . . . . . . 284 137 . . Seismic 2196 | 5 819 304 253 . . . 14 . . . 19 . . . 193 376 213 . . . . . . . . . . . T.N.C. 353 | . . . . . . . 353 . . . . . . . . . . . . . . . . . . . . . Spoofing 8 | . . . . . . . . . . . . . . . . . . . . . . . . . . 8 . . ECM 20 | . . . . . . . . . . . . . . . . . . . . . . . . . . . 20 . Robot Analysis Total 4 | . 2 . 1 . . . . . . . . . . . . . . 1 . . . . . . . . . . Derelict Logs Recovered 1 | . . . . 1 . . . . . . . . . . . . . . . . . . . . . . . . Drone Launches . | . . . . . . . . . . . . . . . . . . . . . . . . . . . . . Drone Recoveries . | . . . . . . . . . . . . . . . . . . . . . . . . . . . . . Exploration | -11 -10 -10 -9 -9 -9 -8 -8 -8 -8 -8 -7 -7 -7 -7 -7 -7 -6 -6 -6 -6 -6 -6 -5 -5 -4 -4 -3 -3 ------------- Run | Yrd Mat Min Mat Min Exi Min Mat Gar Mat Gar Fac Was Fac Gar Fac Gar Fac Ext Cet Arc Hub Gar Fac Gar Fac Gar Res Tes Turns Passed 25447 | 97 819 304 1129 582 374 744 1132 2289 336 793 407 321 604 1200 1280 1597 577 1238 435 547 128 1011 577 966 1471 1628 1239 1622 Spaces Moved 15997 | 52 437 151 703 460 239 480 560 1288 236 449 283 238 437 866 852 1023 431 770 201 106 56 813 478 642 988 1000 951 807 Core 43 | 1 . . . . . . . . . . . . . . . . . . . . . . . . . . . 42 Treads 633 | . 414 131 40 . . . . . . . . . . . . . . . . . . . . . . . . 48 Legs 10852 | . . . . . . . . . . . 283 238 437 866 852 1023 431 770 201 106 56 813 478 642 988 1000 951 717 Wheels 4469 | 51 23 20 663 460 239 480 560 1288 236 449 . . . . . . . . . . . . . . . . . . Hover . | . . . . . . . . . . . . . . . . . . . . . . . . . . . . . Flight . | . . . . . . . . . . . . . . . . . . . . . . . . . . . . . Fastest Speed 50 | 50 90 110 110 115 130 110 115 120 120 120 112 125 113 112 106 106 109 105 105 105 105 105 105 111 105 109 118 50 Average Speed 120 | 90 156 153 117 120 154 122 133 138 120 126 118 125 118 114 115 110 109 105 105 105 105 105 106 111 114 127 121 123 Slowest Speed 260 | 100 160 160 240 130 175 205 150 150 120 150 125 125 125 185 250 180 110 110 105 105 105 105 111 111 179 189 196 260 Overloaded Moves 7 | . . . . . . . . . . . . . . . . . . . . . . . . . . . . 7 Propulsion Burnouts . | . . . . . . . . . . . . . . . . . . . . . . . . . . . . . Robots Hopped . | . . . . . . . . . . . . . . . . . . . . . . . . . . . . . Potential Cave-ins . | . . . . . . . . . . . . . . . . . . . . . . . . . . . . . Cave-ins Triggered . | . . . . . . . . . . . . . . . . . . . . . . . . . . . . . Exploration Rate (%) 57 | 3 63 16 67 91 66 91 61 97 32 67 10 95 8 90 28 95 12 81 73 85 13 98 14 93 35 93 35 69 Regions Visited 28 Branch Regions 9 Pre-discovered Areas 5 | . 1 . 1 2 1 . . . . . . . . . . . . . . . . . . . . . . . Known Exits Taken 10 | . 1 . . . . . 1 . 1 . . . 1 . 1 . . 1 . . 1 . 1 . 1 . 1 . Unknown Exits Taken 9 | 1 . 1 1 1 1 1 . . . . . . . . . . 1 . 1 1 . . . . . . . . Scrap Searched 2 | . . . . 1 . 1 . . . . . . . . . . . . . . . . . . . . . . Spaces Dug 37 | . . . . . . . 6 7 . . . . . . . . . . 13 10 1 . . . . . . . Terrain Destroyed 557 | . 61 . 48 70 . 92 6 13 . 7 . . . 13 19 34 . 22 13 10 1 1 . 4 20 14 1 108 Melee 36 | . . . . . . . 6 7 . . . . . . . . . . 13 10 . . . . . . . . Projectile 54 | . . . . . . . . . . . . . . 2 1 2 . . . . 1 1 . 4 13 14 1 15 AOE 466 | . 61 . 48 70 . 92 . 6 . 7 . . . 11 17 32 . 22 . . . . . . 7 . . 93 Terrain Rammed . | . . . . . . . . . . . . . . . . . . . . . . . . . . . . . Walls Destroyed . | . . . . . . . . . . . . . . . . . . . . . . . . . . . . . Machines Disabled . | . . . . . . . . . . . . . . . . . . . . . . . . . . . . . Actions | -11 -10 -10 -9 -9 -9 -8 -8 -8 -8 -8 -7 -7 -7 -7 -7 -7 -6 -6 -6 -6 -6 -6 -5 -5 -4 -4 -3 -3 --------- Run | Yrd Mat Min Mat Min Exi Min Mat Gar Mat Gar Fac Was Fac Gar Fac Gar Fac Ext Cet Arc Hub Gar Fac Gar Fac Gar Res Tes Total 20799 | 78 510 193 877 473 244 586 831 1659 280 606 349 261 507 995 1082 1404 527 1147 402 519 122 946 542 858 1254 1249 1029 1269 Wait 2371 | . 5 23 66 . . 57 147 93 19 48 22 15 44 22 66 205 54 266 164 395 64 67 29 123 150 49 23 155 Move 15974 | 51 436 150 702 459 238 479 559 1286 236 448 283 237 437 865 852 1022 430 769 200 105 55 812 478 641 988 999 950 807 Hop . | . . . . . . . . . . . . . . . . . . . . . . . . . . . . . Pick Up 241 | 9 4 1 10 1 5 4 17 26 1 14 3 1 7 12 9 23 6 5 6 . . 13 6 12 8 24 4 10 Fast Attach 104 | 6 1 . 6 1 . 3 2 3 . 1 2 . 1 1 5 4 3 3 2 2 . . 1 . 11 10 11 25 Attach 169 | 1 . 2 6 . . 1 5 5 2 8 5 . 1 9 19 29 3 3 . . . 7 3 7 7 17 3 26 Detach 75 | . . . 1 . . 2 1 2 2 5 1 . . 2 12 15 1 1 . . . 1 . 3 2 9 4 11 Swap 292 | . 15 . 11 2 1 13 18 27 6 15 9 1 3 11 21 13 6 16 5 3 . 17 9 7 18 22 8 15 Drop 222 | . 8 . 6 2 . 3 21 26 1 7 12 1 3 5 14 12 6 10 9 2 . 10 4 5 4 28 12 11 Fire 936 | 11 39 16 69 8 . 24 55 43 12 40 9 . 10 52 52 63 16 49 3 2 3 18 11 40 63 89 13 126 Melee 78 | . . . . . . . 6 28 . 1 . . . . 11 7 . 2 13 10 . . . . . . . . Ram 1 | . . . . . . . . . . . . . . . . . . . . . . . . . . . . 1 Kick 33 | . . . . . . . . . . . . . 1 . 7 . 1 3 . . . . 1 . 3 . 1 16 Crush 4 | . 2 1 . . . . . 1 . . . . . . . . . . . . . . . . . . . . Escape Stasis 184 | . . . . . . . . 80 . 8 . . . 4 . 5 . . . . . . . 20 . 2 . 65 Rewire 46 | . . . . . . . . 15 . . 1 6 . . 1 . 1 20 . . . 1 . . . . . 1 Trap 14 | . . . . . . . . . . . 2 . . . 12 . . . . . . . . . . . . . Miscellaneous 55 | . . . . . . . . 24 1 11 . . . 12 1 6 . . . . . . . . . . . . Route ------- -11/Scrapyard -10/Materials (discovered 3 exits: *Mat x2 / *Min) -10/Mines -9/Materials (discovered 4 exits: *Mat x3 / [*Min]) -9/Mines (discovered 2 exits: *Mat / *Exi) -9/Exiles (discovered 2 exits: [*Min x2]) -8/Mines (discovered 2 exits: *Mat x2) -8/Materials (discovered 3 exits: *Fac / [*Sto] / Gar) -8/Garrison (discovered 4 exits: *Mat x4) -8/Materials (discovered 3 exits: *Fac / [*Sto] / Gar) -8/Garrison (discovered 3 exits: *Fac x3) -7/Factory (discovered 2 exits: *Fac / [*Low]) -7/Waste -7/Factory -7/Garrison (discovered 3 exits: *Fac x3) -7/Factory (discovered 3 exits: *Fac x2 / Gar) -7/Garrison (discovered 3 exits: *Fac x3) -6/Factory (discovered 2 exits: [*Low] / *Ext) -6/Extension (discovered 2 exits: *Fac / *Cet) -6/Cetus (discovered 2 exits: *Fac / [*Arc]) -6/Archives (discovered 3 exits: *Fac / *Hub x2) -6/Hub_04(d) -6/Garrison (discovered 3 exits: *Fac x3) -5/Factory (discovered 2 exits: [*Upp] / Gar) -5/Garrison (discovered 3 exits: *Fac x3) -4/Factory (discovered 4 exits: *Res x3 / Gar) -4/Garrison (discovered 3 exits: *Res x3) -3/Research (discovered 2 exits: [*Res] / *Tes) -3/Testing History --------- Turn | Location | Event 16 | -11/Scrapyard | Discovered new exit (range 16) 98 | -11/Scrapyard | Entered Materials 231 | -10/Materials | Discovered new exit (range 11) 297 | -10/Materials | Identified exit to Mines 312 | -10/Materials | Build established: Mutant 399 | -10/Materials | Discovered new exit (range 13) 538 | -10/Materials | Discovered new exit (range 16) 917 | -10/Materials | Entered Mines 985 | -10/Mines | Discovered new exit (range 9) 1045 | -10/Mines | Assembled infested the area 1050 | -10/Mines | Assisted by a Guerilla fighting off Assembled 1052 | -10/Mines | Received a Rocket Launcher from a helpful Derelict 1194 | -10/Mines | Core integrity fell below 50% 1221 | -10/Mines | Entered Materials 1221 | -9/Materials | Evolved 2 slots: Propulsion x1, Weapon x1 1411 | -9/Materials | Discovered new exit (range 11) 1540 | -9/Materials | Build established: Gunner 1547 | -9/Materials | Lost 3 parts (1n1u1w) 1631 | -9/Materials | Discovered new exit (range 13) 1928 | -9/Materials | Lost 3 parts (1p2n) 1949 | -9/Materials | Discovered new exit (range 9) 2045 | -9/Materials | Build established: Scavenger-Gunner 2147 | -9/Materials | Core integrity fell below 50% 2335 | -9/Materials | Discovered new exit (range 14) 2350 | -9/Materials | Entered Mines 2357 | -9/Mines | Joined a pair of Derelicts in attacking an 0b10 outpost 2444 | -9/Mines | Destroyed 8 combat bots 2523 | -9/Mines | Deemed a non-threat by the Exiles lab entrance 2523 | -9/Mines | Discovered new exit (range 5) 2685 | -9/Mines | Learned location of Zion (-7) 2706 | -9/Mines | Discovered new exit (range 7) 2837 | -9/Mines | Learned location of Storage (-8) 2932 | -9/Mines | Entered Exiles 2949 | -9/Exiles | Discovered new exit (range 15) 2968 | -9/Exiles | Met 8R-AWN 2986 | -9/Exiles | Met EX-HEX 3022 | -9/Exiles | Met EX-BIN 3038 | -9/Exiles | Aligned with FarCom system 3039 | -9/Exiles | Given EX-Vault access code 3069 | -9/Exiles | Opened EX-Vault 3082 | -9/Exiles | Found Potential Leg 3085 | -9/Exiles | Found Potential Leg 3091 | -9/Exiles | Found Firepult 3094 | -9/Exiles | Found Trap Reconfigurator 3126 | -9/Exiles | Warned to stay clear of 0b10 Research branches 3179 | -9/Exiles | Met EX-DEC 3292 | -9/Exiles | Discovered new exit (range 10) 3306 | -9/Exiles | Stole three prototypes: Potential Leg, Trap Reconfigurator, Firepult 3306 | -9/Exiles | Entered Mines 3621 | -8/Mines | Build established: Scavenger-Skirmisher 3983 | -8/Mines | Discovered new exit (range 10) 4031 | -8/Mines | Discovered new exit (range 10) 4050 | -8/Mines | Entered Materials 4050 | -8/Materials | Evolved 2 slots: Utility x2 4165 | -8/Materials | Discovered new exit (range 14) 4652 | -8/Materials | Discovered new exit (range 4) 4804 | -8/Materials | Garrison activated, responded to threat 4999 | -8/Materials | Garrison activated, responded to threat 5074 | -8/Materials | Identified exit to Garrison 5117 | -8/Materials | Build established: Skirmisher 5182 | -8/Materials | Entered Garrison 5197 | -8/Garrison | Installed Relay Interface Framework 5230 | -8/Garrison | Triggered checkpoint 5250 | -8/Garrison | Garrison Relay disabled 5750 | -8/Garrison | Triggered checkpoint 5752 | -8/Garrison | Triggered checkpoint 5774 | -8/Garrison | Triggered checkpoint 5888 | -8/Garrison | Triggered checkpoint 5921 | -8/Garrison | Garrison Relay disabled 5980 | -8/Garrison | Build established: Bothacker-Skirmisher 5998 | -8/Garrison | Discovered new exit (range 8) 6152 | -8/Garrison | Phase Generator disabled 6563 | -8/Garrison | P-60 Hacker assimilated allied Commando 3a 6645 | -8/Garrison | Discovered new exit (range 3) 6681 | -8/Garrison | Garrison Relay disabled 6697 | -8/Garrison | Triggered checkpoint 6750 | -8/Garrison | Garrison Relay disabled 6796 | -8/Garrison | Triggered checkpoint 6824 | -8/Garrison | Discovered new exit (range 5) 6908 | -8/Garrison | Triggered checkpoint 6981 | -8/Garrison | Discovered new exit (range 10) 7012 | -8/Garrison | Triggered checkpoint 7040 | -8/Garrison | Triggered checkpoint 7059 | -8/Garrison | Garrison Relay disabled 7296 | -8/Garrison | Triggered checkpoint 7309 | -8/Garrison | Garrison Relay disabled 7396 | -8/Garrison | Build established: Bothacker-Mutant 7471 | -8/Garrison | Entered Materials 7471 | -8/Materials | Accompanied by 7 allies 7680 | -8/Materials | Discovered new exit (range 10) 7784 | -8/Materials | Discovered new exit (range 11) 7802 | -8/Materials | Identified exit to Garrison 7805 | -8/Materials | Garrison activated, responded to threat 7807 | -8/Materials | Entered Garrison 7807 | -8/Garrison | Accompanied by 6 allies 7828 | -8/Garrison | Build established: Bothacker-Skirmisher 7855 | -8/Garrison | Expanded RIF knowledge: Structural Interface 7917 | -8/Garrison | Triggered checkpoint 7944 | -8/Garrison | Garrison Relay disabled 7964 | -8/Garrison | Discovered new exit (range 34) 7964 | -8/Garrison | Discovered new exit (range 87) 7964 | -8/Garrison | Discovered new exit (range 81) 8072 | -8/Garrison | Triggered checkpoint 8075 | -8/Garrison | Triggered checkpoint 8075 | -8/Garrison | Triggered checkpoint 8111 | -8/Garrison | Triggered checkpoint 8143 | -8/Garrison | Lost 5 allies 8166 | -8/Garrison | Triggered checkpoint 8506 | -8/Garrison | Garrison Relay disabled 8561 | -8/Garrison | Triggered checkpoint 8600 | -8/Garrison | Entered Factory 8600 | -7/Factory | Accompanied by 4 allies 8600 | -7/Factory | Evolved 2 slots: Propulsion x1, Utility x1 8602 | -7/Factory | FarCom data flow suspended 8678 | -7/Factory | Discovered new exit (range 14) 8711 | -7/Factory | Discovered new exit (range 16) 8720 | -7/Factory | Build established: Bothacker-Mutant 8722 | -7/Factory | Garrison activated, responded to threat 9007 | -7/Factory | Sucked down chute 9007 | -7/Factory | Entered Waste 9007 | -7/Waste | The area was eerily silent 9017 | -7/Waste | 1 allies followed down the chute 9034 | -7/Waste | Build established: Bothacker-Tank 9149 | -7/Waste | Discovered new exit (range 15) 9328 | -7/Waste | Entered Factory 9328 | -7/Factory | Accompanied by 1 ally 9614 | -7/Factory | Fabricated Hcp. Storage Unit? 9932 | -7/Factory | Identified exit to Garrison 9932 | -7/Factory | Entered Garrison 9961 | -7/Garrison | Garrison Relay disabled 10022 | -7/Garrison | Expanded RIF knowledge: Autooverride 10048 | -7/Garrison | Triggered checkpoint 10070 | -7/Garrison | Garrison Relay disabled 10287 | -7/Garrison | Triggered checkpoint 10314 | -7/Garrison | Triggered checkpoint 10407 | -7/Garrison | Learned Factory security intel 10446 | -7/Garrison | Triggered checkpoint 10487 | -7/Garrison | Rescued a captive Derelict 10520 | -7/Garrison | Discovered new exit (range 3) 10566 | -7/Garrison | Garrison Relay disabled 10640 | -7/Garrison | Triggered checkpoint 10697 | -7/Garrison | Spotted B-75 Beast 10840 | -7/Garrison | Lost 6 allies 10848 | -7/Garrison | Discovered new exit (range 10) 11011 | -7/Garrison | Garrison Relay disabled 11024 | -7/Garrison | Triggered checkpoint 11039 | -7/Garrison | Discovered new exit (range 10) 11132 | -7/Garrison | Entered Factory 11739 | -7/Factory | Discovered new exit (range 7) 12125 | -7/Factory | Repaired Imp. Titanium Leg+ 12181 | -7/Factory | Discovered new exit (range 8) 12412 | -7/Factory | Identified exit to Garrison 12412 | -7/Factory | Entered Garrison 12448 | -7/Garrison | Triggered checkpoint 12515 | -7/Garrison | Garrison Relay disabled 12584 | -7/Garrison | Triggered checkpoint 12621 | -7/Garrison | Destroyed 7 combat bots 12752 | -7/Garrison | Triggered checkpoint 13124 | -7/Garrison | System corruption reached 10% 13252 | -7/Garrison | Discovered new exit (range 10) 13260 | -7/Garrison | Triggered checkpoint 13263 | -7/Garrison | Core integrity fell below 50% 13323 | -7/Garrison | Garrison Relay disabled 13459 | -7/Garrison | Spotted B-75 Beast 13619 | -7/Garrison | Triggered checkpoint 13645 | -7/Garrison | Garrison Relay disabled 13675 | -7/Garrison | Discovered new exit (range 4) 13760 | -7/Garrison | Triggered checkpoint 13798 | -7/Garrison | Expanded RIF knowledge: Zone Cloak 13804 | -7/Garrison | Triggered checkpoint 13817 | -7/Garrison | Discovered new exit (range 13) 13878 | -7/Garrison | Triggered checkpoint 13882 | -7/Garrison | Garrison Relay disabled 14009 | -7/Garrison | Entered Factory 14009 | -6/Factory | Accompanied by 3 allies 14009 | -6/Factory | Evolved 2 slots: Propulsion x1, Utility x1 14088 | -6/Factory | Build established: Botlord-Mutant 14353 | -6/Factory | Lost 3 allies 14397 | -6/Factory | Discovered new exit (range 16) 14439 | -6/Factory | Discovered new exit (range 14) 14586 | -6/Factory | Entered Extension 14586 | -6/Extension | Accompanied by 6 allies 14624 | -6/Extension | Rescued a captive Derelict 14626 | -6/Extension | Rescued a captive Derelict 14639 | -6/Extension | Build established: Botlord-Tank 14757 | -6/Extension | Rescued a captive Derelict 14802 | -6/Extension | Rescued a captive Derelict 14804 | -6/Extension | Rescued a captive Derelict 14942 | -6/Extension | Build established: Bothacker-Tank 15232 | -6/Extension | Spotted B-75 Beast 15250 | -6/Extension | Allies destroyed B-75 Beast 15290 | -6/Extension | Spotted B-75 Beast 15316 | -6/Extension | Allies destroyed B-75 Beast 15394 | -6/Extension | Rescued A7 15544 | -6/Extension | Rescued a captive Derelict 15583 | -6/Extension | Identified exit to Cetus 15671 | -6/Extension | Rescued a captive Derelict 15671 | -6/Extension | Rescued a captive Derelict 15700 | -6/Extension | Discovered new exit (range 13) 15824 | -6/Extension | Entered Cetus 15824 | -6/Cetus | Accompanied by 24 allies (A7) 15829 | -6/Cetus | Acquired a Cetus Manufacturing Module code from A7 15845 | -6/Cetus | Spotted Cetus Guard 15847 | -6/Cetus | Spotted Cetus Guard 15852 | -6/Cetus | Spotted Cetus Guard 15858 | -6/Cetus | Spotted Cetus Guard 15858 | -6/Cetus | Allies destroyed Cetus Guard 15860 | -6/Cetus | Allies destroyed Cetus Guard 15864 | -6/Cetus | Build established: Commander-Tank 15869 | -6/Cetus | Allies destroyed Cetus Guard 15874 | -6/Cetus | Allies destroyed Cetus Guard 15932 | -6/Cetus | Started Cetus Manufacturing Module 15950 | -6/Cetus | Escorted A7 to Cetus Mainframe 15957 | -6/Cetus | Manufactured an Enhanced Grunt 15959 | -6/Cetus | Discovered new exit (range 21) 15982 | -6/Cetus | Manufactured an Enhanced Grunt 16007 | -6/Cetus | Manufactured an Enhanced Grunt 16019 | -6/Cetus | Spotted Cetus Guard 16020 | -6/Cetus | Spotted Cetus Guard 16023 | -6/Cetus | Spotted Cetus Guard 16023 | -6/Cetus | Spotted Cetus Guard 16032 | -6/Cetus | Manufactured an Enhanced Grunt 16039 | -6/Cetus | Allies destroyed Cetus Guard 16043 | -6/Cetus | Allies destroyed Cetus Guard 16044 | -6/Cetus | Allies destroyed Cetus Guard 16049 | -6/Cetus | Discovered new exit (range 22) 16057 | -6/Cetus | Manufactured an Enhanced Grunt 16065 | -6/Cetus | Met Revision 17 16075 | -6/Cetus | Lost 5 allies 16259 | -6/Cetus | Entered Archives 16259 | -6/Archives | Accompanied by 22 allies (A7) 16264 | -6/Archives | Received a hacking code to weaken MAIN.C 16296 | -6/Archives | Discovered new exit (range 22) 16467 | -6/Archives | Discovered new exit (range 20) 16616 | -6/Archives | Discovered new exit (range 14) 16806 | -6/Archives | Entered Hub_04(d) 16806 | -6/Hub_04(d) | Accompanied by 20 allies 16869 | -6/Hub_04(d) | Identified exit to Garrison 16934 | -6/Hub_04(d) | Garrison activated, responded to threat 16934 | -6/Hub_04(d) | Entered Garrison 16934 | -6/Garrison | Accompanied by 17 allies 16957 | -6/Garrison | Garrison Relay disabled 16984 | -6/Garrison | Triggered checkpoint 17007 | -6/Garrison | Found embedded Infiltrators 17080 | -6/Garrison | Spotted B-75 Beast 17086 | -6/Garrison | Triggered checkpoint 17100 | -6/Garrison | Triggered checkpoint 17110 | -6/Garrison | Allies destroyed B-75 Beast 17139 | -6/Garrison | Lost 4 allies 17139 | -6/Garrison | Triggered checkpoint 17197 | -6/Garrison | Lost 4 allies 17209 | -6/Garrison | Discovered new exit (range 10) 17260 | -6/Garrison | Garrison Relay disabled 17375 | -6/Garrison | Garrison Relay disabled 17502 | -6/Garrison | Expanded RIF knowledge: Command Fork 17524 | -6/Garrison | Garrison Relay disabled 17538 | -6/Garrison | Triggered checkpoint 17555 | -6/Garrison | Discovered new exit (range 2) 17632 | -6/Garrison | Triggered checkpoint 17685 | -6/Garrison | Garrison Relay disabled 17708 | -6/Garrison | Discovered new exit (range 9) 17768 | -6/Garrison | Triggered checkpoint 17862 | -6/Garrison | Spotted B-75 Beast 17871 | -6/Garrison | Allies destroyed B-75 Beast 17945 | -6/Garrison | Entered Factory 17945 | -5/Factory | Accompanied by 10 allies 17945 | -5/Factory | Evolved 2 slots: Power x1, Utility x1 18001 | -5/Factory | Build established: Botlord-Tank 18011 | -5/Factory | Discovered new exit (range 11) 18365 | -5/Factory | Lost 3 allies 18423 | -5/Factory | Central database locked down 18520 | -5/Factory | Identified exit to Garrison 18522 | -5/Factory | Entered Garrison 18522 | -5/Garrison | Accompanied by 3 allies 18548 | -5/Garrison | Triggered checkpoint 18561 | -5/Garrison | Garrison Relay disabled 18672 | -5/Garrison | Rescued a captive Derelict 18674 | -5/Garrison | Rescued a captive Derelict 18747 | -5/Garrison | Spotted B-75 Beast 18751 | -5/Garrison | Triggered checkpoint 18775 | -5/Garrison | Triggered checkpoint 18796 | -5/Garrison | Triggered checkpoint 18808 | -5/Garrison | Lost 4 allies 18884 | -5/Garrison | Expanded RIF knowledge: Zone Cloak 18906 | -5/Garrison | Triggered checkpoint 18941 | -5/Garrison | Garrison Relay disabled 18952 | -5/Garrison | Lost 3 allies 18982 | -5/Garrison | Discovered new exit (range 3) 19136 | -5/Garrison | Triggered checkpoint 19166 | -5/Garrison | Garrison Relay disabled 19187 | -5/Garrison | Discovered new exit (range 8) 19356 | -5/Garrison | Discovered new exit (range 10) 19362 | -5/Garrison | Triggered checkpoint 19372 | -5/Garrison | Found embedded Infiltrators 19401 | -5/Garrison | Garrison Relay disabled 19488 | -5/Garrison | Entered Factory 19488 | -4/Factory | Accompanied by 11 allies 19488 | -4/Factory | Evolved 2 slots: Utility x2 19993 | -4/Factory | Lost 4 allies 20104 | -4/Factory | Discovered new exit (range 22) 20488 | -4/Factory | First assault squad dispatched 20504 | -4/Factory | Identified exit to Garrison 20532 | -4/Factory | Found Prototype Processor 20532 | -4/Factory | Identified Exp. Terrain Scan Processor 20674 | -4/Factory | Discovered new exit (range 7) 20682 | -4/Factory | Identified exit to Research 20691 | -4/Factory | Discovered exit to Research (range 9) 20959 | -4/Factory | Identified exit to Garrison 20959 | -4/Factory | Entered Garrison 20979 | -4/Garrison | Spotted B-86 Titan 21073 | -4/Garrison | Triggered checkpoint 21094 | -4/Garrison | Garrison Relay disabled 21124 | -4/Garrison | Found embedded Infiltrators 21182 | -4/Garrison | Triggered checkpoint 21193 | -4/Garrison | Triggered checkpoint 21235 | -4/Garrison | Lost 4 allies 21369 | -4/Garrison | Discovered exit to Research (range 12) 21384 | -4/Garrison | Expanded RIF knowledge: Watcher Feeds 21409 | -4/Garrison | Triggered checkpoint 21427 | -4/Garrison | Garrison Relay disabled 21454 | -4/Garrison | Discovered exit to Research (range 67) 21454 | -4/Garrison | Discovered exit to Research (range 6) 21454 | -4/Garrison | Discovered exit to Research (range 65) 21535 | -4/Garrison | Triggered checkpoint 21607 | -4/Garrison | Spotted B-86 Titan 21652 | -4/Garrison | Spotted Striker 21671 | -4/Garrison | Triggered checkpoint 21708 | -4/Garrison | Garrison Relay disabled 21858 | -4/Garrison | Allies destroyed B-86 Titan 21920 | -4/Garrison | Found Relay Coupler [Proto] 21922 | -4/Garrison | Found Relay Coupler [Proto] 21926 | -4/Garrison | Found Relay Coupler [Proto] 21930 | -4/Garrison | Found Relay Coupler [Proto] 22117 | -4/Garrison | Triggered checkpoint 22152 | -4/Garrison | P-70 Sage assimilated allied Veteran 7d 22165 | -4/Garrison | P-70 Sage assimilated allied Veteran 7f 22172 | -4/Garrison | P-70 Sage assimilated allied Veteran 7g 22212 | -4/Garrison | Lost 3 allies 22284 | -4/Garrison | Garrison Relay disabled 22329 | -4/Garrison | System corruption reached 10% 22529 | -4/Garrison | Expanded RIF knowledge: Program Shield 22587 | -4/Garrison | Entered Research 22587 | -3/Research | Evolved 2 slots: Utility x2 22662 | -3/Research | Watched by a mysterious "MATRIX" hacker 22662 | -3/Research | Central database locked down 22787 | -3/Research | Revision forces began assault on 0b10 22880 | -3/Research | Met up with Revision 17++ 22959 | -3/Research | Lost 3 allies 23016 | -3/Research | Spotted B-86 Titan 23277 | -3/Research | Lost 3 allies 23287 | -3/Research | Research terminal network offline 23418 | -3/Research | Identified exit to Garrison 23461 | -3/Research | Discovered new exit (range 22) 23627 | -3/Research | Spotted Striker 23816 | -3/Research | Discovered new exit (range 6) 23823 | -3/Research | Identified exit to Testing 23826 | -3/Research | Entered Testing 23878 | -3/Testing | Found Prototype Device 23878 | -3/Testing | Identified Exp. Thermal Shield 23897 | -3/Testing | Spotted PH-WBGDR3XB5T 24229 | -3/Testing | Found Prototype Device 24229 | -3/Testing | Identified Exp. Hardlight Generator 24406 | -3/Testing | Scanned by Researcher 24745 | -3/Testing | Lost 3 allies 24799 | -3/Testing | Lost 9 parts (2p1n3u3w) 25138 | -3/Testing | Lost 7 parts (3n1u3w) 25297 | -3/Testing | Core integrity fell below 50% 25305 | -3/Testing | System corruption reached 10% 25316 | -3/Testing | Found Prototype Protection 25316 | -3/Testing | Identified SHELL Armor 25332 | -3/Testing | Found Prototype Protection 25335 | -3/Testing | Found Prototype Protection 25338 | -3/Testing | Found Prototype Protection 25353 | -3/Testing | Lost 3 parts (1p1n1u) 25418 | -3/Testing | Identified Med. Regenerative Plating (x2) 25429 | -3/Testing | Core integrity fell below 20% 25448 | -3/Testing | Destroyed by G-67 Veteran with Plasma Rifle Last Messages --------------- 25425_ Critical hit (Destroy). 25425_ Slug penetrates Wall. 25425_ U-05 Engineer lays Concrete. 25425_ Held in stasis. 25425_ C-55 Analyst is analyzing... 25426_ U-05 Engineer lays Concrete. 25426_ Penetrated by Slug. 25426_ Slug penetrates Wall. 25426_ Dropped Med. Regenerative Plating. 25427_ U-05 Engineer lays Concrete. 25428_ Penetrated by Slug. 25431_ System corrupted: Energy discharge (-3). 25434_ Slug penetrates Wall. 25434_ Adv. Heat Sink destroyed. 25435_ The unstable cave ceiling collapses. 25440_ Adv. Target Analyzer destroyed. 25443_ Held in stasis. 25443_ C-55 Analyst is analyzing... 25447_ P-80 Master resets G-67 Veteran, system corruption cleaned. 25448_ Held in stasis. Map ----- +----------------------------------------------------+ | ????????# ####?????????# #???????????????? | | ######### #?????????# #???????????????? | | #?????????# #???????????????? | | #?????????# #???????????????? | | ##?????????# #???????????????? | | #?????????# #???????????????? | | ###### = = ??????????# #???????????????? | | ?????# #% ??????????#### ##?###???????????? | | ###### #############?# #? #???????????? | | # $$#| # ### # #???????????? | | # %$% # #???????????? | | # !% [ + #???????????? | | # # =T # !!!| #### # #???????????? | | ######## =%!=!##########+###### #?? #???????????? | | ?#????# !!!|#??# # #????#???????????? | | #????# [[!!!#?# """ c # #????????????????? | | ####### !%=|! #?# ""T"" # #????????????????? | | = != ##### "" "" + #?####???????????? | | # ?#"" # # ! #???????????? | | # % ?#"" g # # #???????????? | | # ?#"T = g # + #???????????? | | # %% #?#"" pg ### #???????????? | | # = #?#"" """"" #?? #???????????? | | # % #?### """"" #??? #???????????? | | #" ##### """"" ! #??? #???????????? | | #" + @ !#???? #???????????? | | # """ " "= ############/#####???? #???????????? | | # """ """%*#?????????? #?????????##???????????? | | # """ """= #?????????? #??????????????????????? | | =%""" """ #?????????"" #??????????????????????? | | """ """ #?????????"" #??????????????????????? | | """ """ #????????""" #??????????????????????? | | """ """ #???????? #??????????????????????? | | #??????? #??????????????????????? | | #???????##+###??????????????????????? | | ######### #???????????????????????????????????? | | ????????# #???????????????????????????????????? | | ????????# #???????????????????????????????????? | | ????????# #???????????????????????????????????? | | ????????# #???????????????????????????????????? | | ????????# #???????????????????????????????????? | | ????????# #???????????????????????????????????? | | ????????# #???????????????????????????????????? | | ????????# #???????????????????????????????????? | | ????????# #???????????????????????????????????? | | ???????? #???????????????????????????????????? | | ??????? #???????????????????????????????????? | | ???????""" #???????????????????????????????????? | | ?????? """ #???????????????????????????????????? | | ?????? """ #???????????????????????????????????? | +----------------------------------------------------+ Best States ------------- Heat Dissipation 141 Energy Generation 45 Energy Capacity 1050 Matter Stores 340 Matter Capacity 350 Sight Range 22 Robot Scan Range 16 Terrain Scan Density 1010 ECM Strength 1 Base Temperature (-) 200 Armor Coverage 900 Resistance: KI 30 Phase Shifting 15 Evasion (%) 85 Targeting Accuracy 6 Target Analysis 8 Armor Integrity Analysis 30 Recoil Reduction 4 Relay Coupler Types 5 Relay Coupler Value 105 Trap Extractor Capacity 6 Item Schematics ----------------- Hcp. Storage Unit | -10/Materials | Hacked Exp. Energy Well | -3/Testing | Archive Com. Mass Driver | -3/Testing | Archive Plasma Sword | -3/Testing | Archive Robot Schematics ------------------ R-06 Scavenger | -3/Testing | Archive A-02 Transporter | -3/Testing | Archive Fabricated ------------ Hcp. Storage Unit | x1 | -7/Factory Repaired ---------- Imp. Titanium Leg | 32% | -7/Factory Studied --------- Autogun | -9/Materials | Hacked Wheel | -9/Materials | Hacked Imp. Titanium Leg | -7/Factory | Hacked Remote Datajack | -7/Factory | Hacked Gauss Rifle | -7/Factory | Hacked Imp. Datajack | -7/Factory | Hacked Imp. Grenade Launcher | -7/Factory | Hacked Arm. Leg | -7/Factory | Hacked Lrn. Proton Cannon | -5/Factory | Hacked Neutrino Core | -5/Factory | Hacked Shield Leg | -4/Factory | Hacked Adv. VSS Leg | -4/Factory | Hacked Imp. Thunder Leg | -3/Research | Hacked Hyb. Deuterium Engine | -3/Research | Hacked Railgun | -3/Research | Hacked Alien Tech Used ----------------- None Achievements -------------- Pyromaniac Challenges ------------ None Game ------ Seed DimensionalLinkedSteel Manual? 0 Play Time 05:05:19 Cumulative 367.2 hours Start 2026.08.28 @ 09:47:37 End 2026.09.19 @ 15:47:57 Sessions 7 Manual Loads 0 Difficulty Rogue Special Mode None Game No. 125 Rogue 124 Adventurer 1 Explorer 0 Win Type - Total 13 Types 11/1/1/0/0/0/0/0/0/0 Lore% 76 Gallery% 73 Achievement% 59 Wizard Run 0 Options --------- Layout 0 ASCII 1 Keyboard 1 Movement Vi Keybinds 0 Fullscreen 1 Font 36/Terminus++ Map View 76x50 Zoom Use 0% Tactical HUD 1 Map Filters NONE Filters NONE Steam SD RUN: 17cfd0aa-93a0-462f-b601-705b366d9c9d